{"text_format":"1","workbook":"xlsx","n_sheets":3,"sheets":["PQS datasheet","PQS dashboard","PRODUCT SPECIFIC DETIAL"],"not_rendered":{"charts":0,"images":0,"macros":1,"external_links":0,"defined_names":16,"comments":1,"pivot_tables":1},"unopened":[],"bounds":{"document_bytes":16777216,"sheet_cells":100000,"rows_first":2000,"rows_last":500,"rows_between":2000,"halvings":0,"cell_chars":16384,"cell_head_chars":4096},"cells_cut":0,"cells_raw":0,"read":"whole","date_system":"1900"}

{"sheet":"PQS datasheet","index":0,"n_rows":84,"n_cols":49,"rows_kept":84,"cut":false,"hidden":true,"merged":[[3,41,3,44],[3,1,3,5],[3,6,3,10],[3,20,3,30],[3,36,3,38],[3,39,3,40],[3,31,3,35]]}
[]
[null,"TABLE 1:- DETAIL DBASE FOR PQS PRODUCTS - REFRIGERATOR AND FREEZER CATEGORY (E1 CATEGORY)"]
[]
[null,"CCEOP related ",null,null,null,null,"Supplier related ",null,null,null,null,null,null,null,null,null,null,null,null,null,null,null,null,null,null,null,null,null,null,null,null,"Accessories and spare part",null,null,null,null,"Shipping",null,null,"Price",null,"Quality"]
["PQS code:","PQS tested for FP_GRADE_A ","Platform Extended operating temperature","Temp. Monitoring / Logging ( Type 1,2,3)","Voltage Regulation (CCEOP)","Full CCEOP Complaint  ( Y/N)","Type of applicance","Model ","Energy source (Category)","Manufactured in:","Name of supplier","Climate zone: ","Refrigerant: ","Appliance tested at: ","Performance at: ","Min rated ambient temp:","Energy source: "," Ext dimensions (HxLxD) cm","Fuel and cycle type:","Energy source (Category)2","Vaccine storage capacity:(Litres)","Gross volume (Litres):","Holdover time (hours): ","Energy consumption, stable running (kWh/24 hours):","Energy consumption, cool down test (kWh/24 hours):","Aoutonomy","Solar radiation reference kWh/m2/day"," Gross volume: freezing ","Waterpack freezing capacity: Kg/24 hr","Waterpack storage capacity:","Energy consumption during freezing: kWh/24h","Accessories: ","Compressor make \n( Supplier) ","Compressor Model ","Compressor Rated  power  consumption (Watt)","Spare parts (PQS ref, price):","Shipping volume:  m3 ","Shipping weight KG)","Incoterms","Price year ","Price ","Quality standard: - ","Verification report: ","Current PQS status: pre-qualified:","Verification laboratory: ","Validity until","Volume category (UNICEF)","Volume category ( CCEOP)","Comments"]
["E003/001","Not Applicable","Not Applicable","Not Applicable","Not Applicable","Not Applicable","Combined ref.and fr.","TCW2000DC","SBD"," Luxembourg","B Medical Systems","Hot ","R134a ","+43°C ","+43°C "," +5°C","Solar charged battery","91 x 127 x 78 ","Electric - compression","SBD",76,118,"13 hours 35 mn ",0.57999999999999996,1.23,"Not applicable","Not applicable",42,3.4,"15.6kg",0.99,"4 baskets; 24 water-packs - 0.6 L; 4 Keys; Documentation","Secop","BD35F",180,"Compressor Danfoss BD35F, 296.9702.07, 107.70 €\nE.Box BD35F, 296.9705.12, 105.38 € Electronic thermostat TCW/DC, 292.2009.01, 94.48 €\nSensor for e-thermostat, 296.9804.20, 6.51 € Electronic control panel, 296.3602.82, 15.15 €\nFan compressor, 296.9710.12, 52.06 € Voltage regulator 12 v, 296.9769.71, 45.45 €\nFuse 15A, 296.9243.15, 0.09 € Main switch DC, 292.2044.16, 3.85 €\n",1.02,125,"EXW",2016,"1-39 units: 2770€ 40-99 units: 2475€ >100 units: 2352€","ISO 9001:2008 - ISO 14001 - Other -","A65440 - February 2009","pre-qualified: 17 Mar, 2009","Intertek UK","May,2017",{"$f":"IF(U6<30,\" <30\",IF(U6<60,\"30 - 60\",IF(U6<90,\"60 - 90\",IF(U6<120,\"90 - 120\",IF(U6<300,\" >120\",IF(U6=\"Not applicable\",\"Not applicable\",0))))))","v":"60 - 90"},{"$f":"IF(U6<50,\" <50\",IF(U6<100,\"50 - 100\",IF(U6<500,\" >100\",IF(U6=\"Not applicable\",\"Not applicable\",0))))","v":"50 - 100"},"Solar power system not included - contact manufacturer Power source: battery 12/24V DC"]
["E003/002","Not Applicable","Not Applicable","Type 1","Comply","Fully compliant","Freezer"," HBD 116","Electric Mains"," People's Republic of","Haier Medical","Hot ","R134a ","+43°C ","+43°C ","Not applicable","Electric Mains 220-240V 50/60Hz","82 x 67 x 63 ","Electric - compression","Electric Mains","Not applicable","Not applicable","2 hours 29 mn",0.38,"Not applicable","Not applicable","Not applicable",121,12,"136 x 0.6 L",3.77,"Instruction manual; Keys; Tray","Secop","NL6.1FT",null,"Compressor Danfoss, 0070701332, 60 USD\nThermostat, 0074090880, 6.8 USD\nStarter, 0070701332D, 7.4 USD\nStarter relay, 0070701331F, 7.4 USD\nBaskets (2), 0071090001, 7.2 USD\n",0.5,79,"EXW",2016,"410 $US","ISO 13485 - ISO 14001 -","WB-09-145 ","pre-qualified: 24 Sept., 2009","CHEARI","May,2017","Not applicable",{"$f":"IF(U7<50,\" <50\",IF(U7<100,\"50 - 100\",IF(U7<500,\" >100\",IF(U7=\"Not applicable\",\"Not applicable\",0))))","v":"Not applicable"},"─"]
["E003/003","Not Applicable","Not Applicable","Type 1","Comply","Fully compliant","Freezer"," HBD 286","Electric Mains","China; People's Republic of","Haier Medical","Hot ","R134a ","+43°C ","+43°C ","Not applicable","Electric Mains 220-240V 50/60Hz","80 x 124 x 63 ","Electric - compression","Electric Mains","Not applicable","Not applicable","4 hours 9 mn",4.3600000000000003,3.77,"Not applicable","Not applicable",298,16.8,"310 x 0.6 L","Not indicated","Instruction manual; Keys; Tray","Secop","NL7FT ",null,"Compressor danfoss, 0070701332, 70.2 USD\nThermostat, 0074090880, 6.8 USD\nStarter, 0070701332D, 7.4 USD\nStarter relay, 0070701331G, 7.4 USD\nBaskets (3), 0071090001, 7.2 USD\n",0.88,79,"EXW",2016,"521US$","ISO 13485 - ISO 14001 - Other -","WB-09-145 ","pre-qualified: 24 Sept., 2009","CHEARI","May,2017","Not applicable","Not applicable","─"]
["E003/004","Not Applicable","Not Applicable","Type 1","Comply","Fully compliant","Freezer","TFW 800","Electric Mains","Luxembourg","B Medical Systems","Multi-zone","R134a ","+43°C; +32°C; +27°C","+43°C ","Not applicable","Electric Mains 220-240V 50/60Hz","183.0 x 59.5 x 72.5 ","Electric - compression","Electric Mains","Not applicable","Not applicable","Nor indicated",3.35,3.98,"Not applicable","Not applicable",290,36,"187 x 0.6 L",6.35,"Temperature zone indicator","Secop","NL9FT",null,"Thermostat (2), 296.9764.09, 123.00 €\nCompressor, 296.9701.33, 139.47 €",1.2549999999999999,109,"EXW",2016,"1-39 units: 2579 € 40-99 units: 2571 € >100 units: 2330 €","ISO 13485 - ISO 14001 - Other -","A65808","pre-qualified: 29 Sept., 2009","Intertek UK","May,2017","Not applicable","Not applicable","Also available in 115V 60Hz"]
["E003/005","Not comply","Comply","Type 1","Comply","Not fully compliant","Refrigerator","HBC 70","Electric Mains","China; People's Republic of","Haier Medical","Hot ","R134a ","+43°C ","+43°C "," +5°C","Electric Mains 220-240V 50/60Hz","81.8 x 67.3 x 66.3 ","Electric - compression","Electric Mains",45,71,"27 hours 18 mn",0.64,2.4,"Not applicable","Not applicable","Not applicable","Not applicable","Not applicable","Not applicable","Instruction manual; Keys; Tray","Secop","NL6.1FT",null,"Thermostat, 0074091494; 27.6 USD\nCompressor, 0070701331; 94.9 USD",0.56000000000000005,64,"EXW",2016,"510US$","ISO 13485 - ISO 14001 - Other -","WB-09-848","pre-qualified: 10 Oct., 2009","CHEARI","May,2017","30 - 60"," <50","Energy consumption intermittent power to be provided"]
["E003/006","Not comply","Comply","Type 1","Comply","Not fully compliant","Refrigerator","HBC 200","Electric Mains","China; People's Republic of","Haier Medical","Hot ","R134a ","+43°C ","+43°C "," +5°C","Electric Mains 220-240V 50/60Hz","81.8 x 124.3 x 63 ","Electric - compression","Electric Mains",90,198,"31 hours 23 mn",1.34,4.01,"Not applicable","Not applicable","Not applicable","Not applicable","Not applicable","Not applicable","Instruction manual; Keys; Tray","Secop","NL7FT ",null,"Thermostat, 0074091494; 27.6 USD\nCompressor, 0070701332; 98.9 USD",0.91,108,"EXW",2016,"688US","ISO 13485 - ISO 14001 - Other -","WB-09-847","pre-qualified: 10 Oct 2009","CHEARI","May,2017","90 - 120","50 - 100","Energy consumption intermittent power to be provided"]
["E003/007","Not comply","Comply","Type 1","Comply","Not fully compliant","Refrigerator","MK 304","Electric Mains","Denmark","Vestfrost Solutions","Multi-zone","R134a ","+43°C; +32°C","+43°C "," +5°C","Electric Mains 220-240V 50/60Hz","84 x 69 x 126 ","Electric - compression","Electric Mains",105,218,"25 hours 66 mn",3.2,5.0999999999999996,"Not applicable","Not applicable","Not applicable","Not applicable","Not applicable","Not applicable","7 baskets; Temperature controler; Key; Instruction manual; Plywood packing","Secop","FR8.5G",null,"Thermostat, 7020109-01; 19.12 €\nCompressor, 8-03.6038480; 98.09 €",1.02,126,"FCA",2016,"1-99 units: 793 € 100-199 units: 780 € >200 units: 770 €"," ISO 9001:2008  ISO 14001  Other ","300-KLAB-09-142","pre-qualified: 25 Nov 2009","Danish Technological Institute","May,2017","90 - 120"," >100","Data 32°C to be provided"]
["E003/008","Not Applicable","Not Applicable","Not Applicable","Not Applicable","Not Applicable","Two-mode ref.OR fr.","TCW3000 DC","SBD","Luxembourg","B Medical Systems","Hot ","R134a ","+43°C ","+43°C ","+10°C","Solar charged battery","90.5 x 126 x 82.5 ","Electric - compression","SBD",109.5,204,"23.4 hours",1.01,2.15,"Not applicable","Not applicable",204,17,"48kg",2.35,"5 baskets - 36 x 0.6 L water-packs - Keys - Instructions","Secop","BD80F",null,"Compressor Danfoss BD80F - 296.9702.11 - 176.66 €; \nE-Box BD80F - 296.9705.22 - 165.82 €;Electronic thermostat TCW/DC 292.2009.01 - 94.48 €; \nSensor for electronic thermostat -296.9804.20 - 6.51 €; \nControl panel electronic - 296.3602.83 - 11.66 €; \nFan compressor -296.9710.71 - 65.21 €; Voltage regulator 12V - 296.9769.71 - 77.48 €; \nFuse 15A - 296.9243.15 -0.09 €; Main switch DC - 292.2044.16 - 3.85 €",1.05,125,"EXW",2016,"1-39 units: 2719 € 40-99 units: 2584 € >100 units: 2455 €","ISO 9001:2008 - ISO 14001 - Other -","A65440b and A65440c","pre-qualified: 15 Dec 2009","Intertek UK","May,2017","90 - 120"," >100","Two-mode appliance: it works either as a refrigerator or waterpacks freezer; power source 12/24V\nfor solar powered battery - Prices do not include the solar power system"]
["E003/009","Not Applicable","Not Applicable","Not Applicable","Not Applicable","Not Applicable","Refrigerator","MKS 044","SDD (AB)","Denmark","Vestfrost Solutions","Temperate","R600a","+32°C","+32°C","+20°C","Solar direct drive with ancillary battery","87.6 x 72.7 x 69.7 ","Electric - compression","SDD (AB)",19.5,48,"Not applicable","Not indicated","Not indicated","147 hours",6,"Not applicable","Not applicable","Not applicable","Not applicable","3 baskets; Self regulating temperature control; External electronic temperature reading; Locking lid with keys; Instructions; Plywood packing","Secop","BD35K",180,"Thermostat Danfoss: 19.12 €\nCompressor Danfoss: BD35K, 105.50 €\nE-box danfoss: BD35K, 71.50 €",0.65,88,"FCA",2016,"1-99 units: 2318 € 100-199 units: 2285 € 200 or more units: 2250 €"," ISO 9001:2008  ISO 14001  Other ","300-KLAB-09-213","pre-qualified: 18 Mar 2010","Danish Technological Institute","May,2017"," <30"," <50","Solar system not included - contact manufacturer"]
["E003/010","Not comply","Comply","Type 1","Comply","Not fully compliant","Combined ref.and fr.","MKF 074","Electric Mains","Denmark","Vestfrost Solutions","Temperate","R134a ","+32°C","+32°C"," +5°C","Electric Mains 220-240V 50/60Hz","84 x 70 x 72 ","Electric - compression","Electric Mains",16,54,"52 hours 54 mn",3.46,3.18,"Not applicable","Not applicable",10,1.6,"9 x 0.6 L","Not indicated","2 baskets; Self regulating temperature control; External temperature reading; Locking lid with keys;Instructions; Plywood packing","Secop","TL5G",null,"Thermostat, Danfoss 7020109-01, 19.12 €\nCompressor, Danfoss 8-03.6038858, 86.76 €",0.65,90,"FCA",2016,"1-99 units: 725 € 100-199 units: 715 € 200 or more units: 704 €"," ISO 9001:2008  ISO 14001","300-KLAB-09-214","pre-qualified: 14 Jul 2010","Danish Technological Institute","May,2017"," <30"," <50","─"]
["E003/011","Not comply","Comply","Type 1","Comply","Not fully compliant","Refrigerator","MK 204","Electric Mains","Denmark","Vestfrost Solutions","Hot ","R134a ","+43°C ","+43°C ","+10°C","Electric Mains 220-240V 50/60Hz","84 x 70 x 92 ","Electric - compression","Electric Mains",75,136,"20.1 hours",1.89,3.58,"Not applicable","Not applicable","Not applicable","Not applicable","Not applicable","Not applicable","5 baskets; Self regulating temperature control; External electronic temperature reading; Locking lid with\nkeys; Instructions; Plywood packing","Secop","FR6G",null,"Thermostat, Danfoss 7020109-01, 19.12 €\nCompressor, 8-03.6038754, 90.05 €",0.752,102,"FCA",2016,"1-99 units: 674 € 100-199 units: 666 € 200 or more units: 657 €"," ISO 9001:2008  ISO 14001","300-KLAB-09-141","pre-qualified: 14 Jul 2010","Danish Technological Institute","May,2017","60 - 90","50 - 100","─"]
["E003/012","Not comply","Not comply","Type 1","Comply","Not fully compliant","Refrigerator","MK 404","Electric Mains","Denmark","Vestfrost Solutions","Hot ","R134a ","+43°C ","+43°C ","+25°C","Electric Mains 220-240V 50/60Hz","84 x 70 x 156 ","Electric - compression","Electric Mains",135,240,"23.23 hours",3.08,6.37,"Not applicable","Not applicable","Not applicable","Not applicable","Not applicable","Not applicable","7 Baskets; Self regulating temperature control; External temperature reading; Locking lid with keys;\nInstructions; Plywood packing","Secop","FR8.5G",null,"Thermostat, Danfoss 7020109-01, 19.12 €\nCompressor, Danfoss 8-03.6038480, 98.09 €",1.264,"Nor indicated","FCA",2016,"1-99 units: 900 € 100-199 units: 888 € 200 or more units: 875 €"," ISO 9001:2008  ISO 14001 ","300-KLAB-10-122","pre-qualified: 14 Jul 2010","Danish Technological Institute","May,2017"," >120"," >100","─"]
["E003/014","Comply","Comply","Type 1","Comply","Fully compliant","Combined ref.and fr.","TCW2000 AC","Electric Mains","Luxembourg","B Medical Systems","Hot ","R134a ","+43°C ","+43°C ","+15°C","Electric Mains 220-240V 50/60Hz or Electric Mains 115/60Hz optional","90 x 127 x 78 ","Electric - compression","Electric Mains",60,118,"39.4 hours",1.87,4.34,"Not applicable","Not applicable",42,10,"12kg",1.95,"4 baskets; 24 waterpacks 0.6L; 4 keys; Documentation","Secop","TL5G",null,"Electronic Thermostat - 292.2009.00 - 89.36 €\nDrier - 294.1853.02 - 1.90 €;\nFan - 296.9759.17 - 28.30 €;\nCompressor - 296.9701.41 - 130.32 €;\nStarting capacitor - 296.9706.48 - 11.54 €",1.05,125,"EXW",2016,"1-39 units: 2509 € 40-99 units: 2382 € 100 or more units: 2565 €"," ISO 9001:2008  ISO 14001","A65998","pre-qualified: 14 Dec 2010","Intertek UK","May,2017","60 - 90","50 - 100","Electricity source for 115V-60Hz is optional"]
["E003/017","Comply","Not comply","Type 1","Comply","Not fully compliant","Two-mode ref.OR fr.","TCW3000 AC","Electric Mains","Luxembourg","B Medical Systems","Hot ","R134a ","+43°C ","+43°C ","+15°C","Electric Mains 220-240V 50/60Hz or Electric Mains 115/60Hz optional","91 x 127 x 78 ","Electric - compression","Electric Mains",150,204,"53 hours 10 min; 3 hours 55 min","1.37, 3.83","1.32; 3.91","Not applicable","Not applicable",204,"Not indicated","112.2kg","Not indicated","5 baskets; 36 waterpacks of 0.6 litre; 2 keys; documentation","Secop","NL9FT",null,"Compressor, 296.9701.33 - 167.55 €\nElectronic thermostat TCW3000, 292.2009.03 - 104.22 €\nFan compressor, 296.9759.51 - 26.79 €\nDrier 13,5G R134A, 296.0945.04 - 1.89 €\nStarting capacitor 80 uf, 296.9706.10 - 11.13 €\nStarting relay, 296.9706.08 - 5.38 €",1.071,"125 s","EXW",2016,"1-39 units: 2615 € 40-99 units: 2484 € More than 100 units: 2361 €"," ISO 9001:2008  ISO 14001","WHO-11-015 & WHO-11-016","pre-qualified: 09 May 2011","CEMAFROID SAS","May,2017"," >120"," >100","Power source option: 115V 60Hz- This appliance can be set as a refrigerator or a freezer. Double\ndata indicates as refrigerator and as freezer."]
["E003/020","Comply","Comply","Type 1","Not Applicable","Fully compliant","Refrigerator","BFRV55","SDD","United States","SunDanzer","Hot ","R134a ","+43°C ","+43°C "," +5°C","Solar direct drive","88.0 x 96.5 x 71.0 ","Electric - compression","SDD",54.5,60.1,"Not applicable","Not indicated","Not indicated","83 hours 29 mn",3.5,"Not applicable","Not applicable","Not applicable","Not applicable","Four 85 watt solar panels (2 East and 2 West Facing); compass; 12V nominal; 23m PV wiring; universal solar panel mounting kit for ground, pole or roof with required tools and instructions for assembly; grounding kit (3.5” outer diameter (OD) pole not included); 2 baskets; lock; temperature display; User’s Manual; Installation Manual; export crate","Secop","BD50F",110,"Electronic Control Unit: 101N0230, 120 USD\nElectronic Thermostat: SDZR-PCB 3.4, 100 USD\nECU Fan and Condenser Fan set: 11SD001, 30 USD\nCompressor: 101Z0203, 120 USD",1.27,218,"EXW",2016,"1-49 Units: 3,399USD 50-99 Units: 3,199USD 100+ Units: 2,999USD"," ISO 9001:2008 ","300-KLAB-11-109","pre-qualified: 13 Sep 2011","Danish Technological Institute","May,2017","30 - 60","50 - 100","Dosier ammended June 2014, upgraded model with internal aluminium lining , 48 units into a 40' container."]
["E003/021","Not comply","Comply","Type 1","Comply","Not fully compliant","Refrigerator","VLS 400","Electric Mains","Denmark","Vestfrost Solutions","Hot ","R600a","+43°C ","+43°C "," +5°C","Electric Mains 220-240V 50/60Hz or Electric Mains 115/60Hz optional","86.0 X 127.0 X 70.0 ","Electric - compression","Electric Mains",216,235,"30 hours",0.82,0.85,"Not applicable","Not applicable","Not applicable","Not applicable","Not applicable","Not applicable","7 vaccine storage baskets; self-regulating temperature control; electronic temperature reading; locking lid; manual\nin 6 languages; plywood packing.","Secop","NLE9KTK",null,"Thermostat - Danfoss; 7020109-01; 19,12 €\nCompressor - Danfoss; 8-036038255; 102.0 €",1.02,126,"FCA",2016,"1 -99 units: 826 € 100 - 199 units: 810 € 200 and more: 794 €"," ISO 9001:2008  ISO 14001","A66543","pre-qualified: 03 Nov 2011","Intertek UK","May,2017"," >120"," >100","─"]
["E003/022","Not comply","Not comply","Type 1","Comply","Not fully compliant","Refrigerator","MK 144","Electric Mains","Denmark","Vestfrost Solutions","Hot ","R134a ","+43°C ","+43°C ","+25°C","Electric Mains 220-240V 50/60Hz or Electric Mains 115/60Hz optional","88.0 x 96.5 x 71.0 ","Electric - compression","Electric Mains",48,63.7,"43 hours 8 min",2.2999999999999998,2.27,"Not applicable","Not applicable","Not applicable","Not applicable","Not applicable","Not applicable","3 vaccine storage baskets. Self regulating temperature control. External electronic temperature reading.\nLocking lid. Manual in 6 languages. Plywood packing.","Secop","TL5G",null,"Thermostat - Danfoss; 7020109-01; 19,12 €\nCompressor - Danfoss; 03.6038602; 88,50 €",0.57999999999999996,70,"FCA",2016,"1 - 99 units: 614 € 100 - 199 units: 566 € 200 and more: 558 €"," ISO 9001:2008  ISO 14001","300-KLAB-11-112","pre-qualified: 03 Nov 2011","Danish Technological Institute","May,2017","30 - 60"," <50","─"]
["E003/023","Not Applicable","Not Applicable","Type 1","Comply","Fully compliant","Freezer","MF 314","Electric Mains","Denmark","Vestfrost Solutions","Hot ","R134a ","+43°C ","+43°C ","Not applicable","Electric Mains 220-240V 50/60Hz or Electric Mains 115/60Hz optional","84 x 156 x 70 ","Electric - compression","Electric Mains","Not applicable","Not applicable","4.0 hours",4.2300000000000004,4.29,"Not applicable","Not applicable",281,7.2,"256 x 0.6 L",4.24,"External electronic temperature reading. Locking lid, Manual 6 languages. Plywood packing.\n3 baskets","Secop","FR10G",null,"Thermostat Danfoss 7020109-01; 19.12€\nCompressor Danfoss O/C 103G6890; 101.66€",1.161,108.5,"FCA",2016,"1 - 99 units: 573 100 - 199 units: 565 200 and more units: 557"," ISO 9001:2008  ISO 14001","A66542-3 issue 1","pre-qualified: 01 Dec 2011","Intertek UK","May,2017","Not applicable","Not applicable","Vaccine/waterpacks freezer MF314; option electric mains 115V 60Hz"]
["E003/024","Not Applicable","Not Applicable","Type 1","Comply","Fully compliant","Freezer","MF 114","Electric Mains","Denmark","Vestfrost Solutions","Hot ","R134a ","+43°C ","+43°C ","Not applicable","Electric Mains 220-240V 50/60Hz or Electric Mains 115/60Hz optional","84 x 72 x 70 ","Electric - compression","Electric Mains","Not applicable","Not applicable","2.8 hrs",2.2400000000000002,2.41,"Not applicable","Not applicable",105,7.2,"64 x 0.6 L",3.33,"External electronic temperature reading, locking lid, manual 6 languages, Plywood packing, 2 baskets","Secop","FR8.5G",null,"Thermostat Danfoss, 7020109-01, 19.12€\nCompressor Danfoss, 8-03.6038480, 98.09€",0.57999999999999996,70,"FCA",2016,"1 - 99 units: 421€ 100 - 199 units: 414€ 200 and more: 408€"," ISO 9001:2008  ISO 14001","A66542-1","pre-qualified: 01 Dec 2011","Intertek UK","May,2017","Not applicable","Not applicable","Vaccine waterpacks freezer MF114 option electric mains 115V 60Hz"]
["E003/025","Not Applicable","Not Applicable","Type 1","Comply","Fully compliant","Freezer","MF 214","Electric Mains","Denmark","Vestfrost Solutions","Hot ","R134a ","+43°C ","+43°C ","Not applicable","Electric Mains 220-240V 50/60Hz or Electric Mains 115/60Hz optional","84 x 113 x 70 ","Electric - compression","Electric Mains","Not applicable","Not applicable","2.9 hours",3,2.96,"Not applicable","Not applicable",171,7.2,"160 x 0.6 L",3.56,"External electronic temperature reading, locking lid, manual 6 languages, Plywood packing, 2 baskets","Secop","FR8.5G",null,"Thermostat Danfoss 7020109-01, 19.12 €\nCompressor Danfoss 8-03.6038480, 98.09€",0.84599999999999997,96.3,"FCA",2016,"1 - 99 units: 490€ 100 - 199 units: 483€ 200 and more: 475€"," ISO 9001:2008  ISO 14001","A66542-2 issue 1","pre-qualified: 01 Dec 2011","Intertek UK","May,2017","Not applicable","Not applicable","Vaccine waterpack freezer option for 115V 60Hz mains"]
["E003/026","Not Applicable","Not Applicable","Not Applicable","Not Applicable","Not Applicable","Combined ref.and fr.","VC 65-2","SBD","United Kingdom","Dulas Solar","Hot ","R134a ","+43°C ","+43°C ","+10°C","Solar charged battery","93.6 x 92.9 x 77.7 ","Electric - compression","SBD",37.5,48.3,"3 hours 8 min",0.55000000000000004,0.54,"Not applicable","Not applicable",24.3,2.4,"18 x 0.6 L",0.9,"Locking door; external temperature indicator; storage baskets; instruction manual","Secop","BD35F",180,"Compressor, Danfoss BD35F, 125.00€\nCompressor controller, Danfoss 101N0210; 95.00€\nThermostat AT-5BQ8L-1PS, 50.00€",0.88700000000000001,92,"FCA",2016,"3275 € per unit"," ISO 9001:2008 ","300-KLAB-11-150","pre-qualified: 20 Jan 2012","Danish Technological Institute","May,2017","30 - 60"," <50","Power consumption at +32°C=0.29 kWh/24h\nPower consumption at +27°C=0.21 kWh/24h\nThe appliance is supplied as a kit including solar system. Price might depend on location."]
["E003/027","Not Applicable","Not Applicable","Not Applicable","Not Applicable","Not Applicable","Combined ref.and fr.","VC 150-2","SBD","United Kingdom","Dulas Solar","Multi-zone","R134a ","+43°C ","+43°C ","+10°C","Solar charged battery","92.9 x 128.5 x 78.1 ","Electric - compression","SBD",86,111.2,"3 hours 22 min",0.68,0.65,"Not applicable","Not applicable",33.1,2.4,"26 x 0.6 L",1.06,"Locking door; external temperature indicator; storage basket;\ninstruction manual","Secop","BD35F",180,"Compressor Danfoss BD35F, 125.00€\nCompressor controller 101N0210, 95.00€\nThermostat AT-5BQ8L-1PS, 50.00€",1.075,111,"FCA",2016,"4275 € per unit"," ISO 9001:2008 ","300-KLAB-11-151","pre-qualified: 20 Jan 2012","Danish Technological Institute","May,2017","60 - 90","50 - 100","Power consumption at 32°C = 0.38 kWh/24h\nPower consumption at 27°C = 0.27 kWh/24h\nAppliance supplied as a kit including solar system\nPrice might depend on location"]
["E003/028","Not Applicable","Not Applicable","Not Applicable","Not Applicable","Not Applicable","Refrigerator","VC 200-1","SBD","United Kingdom","Dulas Solar","Hot ","R134a ","+43°C ","+43°C ","+20°C","Solar charged battery","93.3 x 128.5 x 78.1 ","Electric - compression","SBD",126.5,155.1,"3 hours 3 min",0.63,0.63,"Not applicable","Not applicable","Not applicable","Not applicable","Not applicable","Not applicable","Locking door, external temperature indicator, storage cage, instruction manual","Secop","BD35F",180,"Compressor Danfoss BD35F, 125.00€\nCompressor controller 101N0210, 95.00€\nThermostat AT-5BQ8L-1PS, 50.00€",1.075,95,"FCA",2014,"3050 € per unit"," ISO 9001:2008 ","300-KLAB-11-152","pre-qualified: 20 Jan 2012","Danish Technological Institute","May,2017"," >120"," >100","Power consumption at 32°C = 0.29 kWh/24h\nPower consumption at 27°C = 0.20 kWh/24h\nAppliance supplied as a kit including solar system\nPrice might depend on location"]
["E003/029","Not Applicable","Not Applicable","Not Applicable","Not Applicable","Not Applicable","Refrigerator","HTC-60","SDD (AB)","China; People's Republic of","Haier Medical","Temperate","R600a","+32°C","+32°C","+10°C","Solar direct drive with ancillary battery","78.8 x 65.4 x 87.5 ","Electric - compression","SDD (AB)",21,60,"Not applicable","Not indicated","Not indicated","135 hours 30 min",3.5,"Not applicable","Not applicable","Not applicable","Not applicable","Baskets - set of keys - instruction manual","Secop","BD35K",180,"Handle - 0070814623; 3 USD; Thermostat - 0074000154; 3 USD\nSwitch - 0074091465; 2 USD; Electric controller - 0274000185; 30 USD\nHinge cover - 0070204349; 1 USD; Dryer filter - 0074180006; 2 USD\nHinge - 0070816334; 3 USD; Fan DC 12V - 0074000329; 4 USD\nCompressor Danfoss - 0274000118; 180 USD\nRechargeable battery (12V 10Ah) - 0274000119; 85 USD",0.7,98,"FCA",2016,"1- 99 units 2500 USD , 100 - 199 2450USD, >200 2400 USD","ISO 9001:2008 - ISO 13485 - ISO 14001 -","WB-11-2005","pre-qualified: 09 Jul 2012","CHEARI","May,2017"," <30"," <50","─"]
["E003/030","Comply","Not comply","Type 1","Not Applicable","Not fully compliant","Refrigerator","TCW3000 SDD","SDD","Luxembourg","B Medical Systems","Temperate","R600a","+32°C","+32°C"," +5°C","Solar direct drive","91 x 127 x 78 ","Electric - compression","SDD",156,187,"Not applicable","Not indicated","Not indicated","86 hours 56 min",3.5,"Not applicable","Not applicable","Not applicable","Not applicable","Baskets, Instruction manual, set of keys","Secop","BD35K",180,"Compressor 296.9702.09: 125.50€; E-Box 296.9705.24: 128.79€\nElectronic thermostat 292.2009.05: 117.72€; Sensor for e-thermostat 296.9804.20: 8.86€\nElectronic control panel 296.3602.83: 7.52€; Fan compressor 292.9960.06: 72.48€\nMain switch 292.2044.18: 6.17€",1.07,114,"EXW",2016,"1 - 39 units: 4793€ G1; 5301€ G2; 6946€ G3\n40 - 99 units: 4565€ G1; 5048€ G2; 6615€ G3\n> 100 units: 4348€ G1; 4808€ G2; 6300€ G3"," ISO 9001:2008 - ISO 14001 ","WHO 12-018","pre-qualified: 25 Jun 2012","CEMAFROID SAS","May,2017"," >120"," >100","radiation reference period 3.5 kWh/m2/day"]
["E003/031","Not comply","Comply","Type 1","Comply","Not fully compliant","Two-mode ref.OR fr.","VLS 200 Green line","Electric Mains","Denmark","Vestfrost Solutions","Hot ","R600a","+43°C ","+43°C "," +5°C","Electric Mains 220-240V 50/60Hz","85 x 73 x 70 ","Electric - compression","Electric Mains",60,113,"24.4 hours",0.71,0.8,"Not applicable","Not applicable",39,"5 x 0.6L","64 x 0.6L",2.2999999999999998,"Optional vaccine storage baskets. Self regulating temperature control. Electronic temperature reading.\nLocking lid. Manual in 6 languages, Plywood packing.","Secop","TLES7KTK",null,"Thermostat Danfoss 7020127; 19.12€\nCompressor Danfoss 6510219; 88.50€",0.57999999999999996,70,"FCA",2016,"580€ per unit - 1-99 units 582€ per unit - 100 - 199 units 572€ per unit - 200 and more "," ISO 9001:2008  ISO 14001","1205711OMKS-001a Issue 2","pre-qualified: 25 Jun 2012","Intertek UK","May,2017","60 - 90","50 - 100","Report amended for addition of freezer mode March 2014"]
["E003/032","Not comply","Comply","Type 1","Comply","Not fully compliant","Refrigerator","VLS 300","Electric Mains","Denmark","Vestfrost Solutions","Hot ","R600a","+43°C ","+43°C "," +5°C","Electric Mains 220-240V 50/60Hz or Electric Mains 115/60Hz optional","85 x 92 x 70 ","Electric - compression","Electric Mains",98,157,"23.5 hours",0.66,0.69,"Not applicable","Not applicable","Not applicable","Not applicable","Not applicable","Not applicable","Optional vaccine storage baskets. self-regulating temperature control; electronic temperature reading;\nLocking lid; Manual in 6 languages; Plywood packing","Secop","TLES7KTK",null,"Thermostat, Danfoss 7020127: 19.12€\nCompressor, Danfoss 6510219: 88.50€",0.75,93,"FCA",2016,"1 - 99 units: 698€ 100 - 199 units: 687€ 200 units and more: 674€"," ISO 9001:2008  ISO 14001","12057110OMKS-002a","pre-qualified: 08 Oct 2012","Intertek UK","May,2017","90 - 120","50 - 100","─"]
["E003/033","Not comply","Comply","Type 1","Comply","Not fully compliant","Refrigerator","VLS 350","Electric Mains","Denmark","Vestfrost Solutions","Hot ","R600a","+43°C ","+43°C "," +5°C","Electric Mains 220-240V 50/60Hz or Electric Mains 115/60Hz optional","85 x 113 x 70 ","Electric - compression","Electric Mains",127,209,"31.5 hours",0.61,"0.64 (13.4 hours)","Not applicable","Not applicable","Not applicable","Not applicable","Not applicable","Not applicable","Optional vaccine storage baskets; slef-regulating temperature control; electronic temperature reading;\nlocking lid; manual in 6 languages; plywood packing.","Secop","NLE9KTK",null,"Thermostat 7020109-01: 19.12€\nCompressor 8-036038255: 102.00€",0.85,110,"FCA",2016,"1 - 99 units: 779€ 100 - 199 units: 747€ 200 and more units: 715€"," ISO 9001:2008  ISO 14001","12057110OMKS-003a","pre-qualified: 08 Oct 2012","Intertek UK","May,2017"," >120"," >100","─"]
["E003/034","Not comply","Comply","Type 1","Comply","Not fully compliant","Refrigerator","HBC-110","Electric Mains","China; People's Republic of","Haier Medical","Hot ","R134a ","+43°C ","+43°C "," +5°C","Electric Mains 220-240V 50/60Hz","86 x 63 x 81.8 ","Electric - compression","Electric Mains",52.5,110,"36 hours 17 min",1.2,1.28,"Not applicable","Not applicable","Not applicable","Not applicable","Not applicable","Not applicable","2 keys; instructions manual; baskets; stem thermometer","Secop","NL6.1FT",null,"Temperature controller, 0074091494: 42.15 USD; Handle, 0070804793: 3.38USD\nElectrical wiring, 0070402374: 4.55USD;Waterpacks, 0070204756 and 0070204757: 1.00USD\nLower baskets, 0070107509: 2.00USD; Upper baskets, 0070107508: 2.05USD\nCompressor, 0070701331: 121.49USD ; Fan, 0075030020: 14.00USD\nCondenser, 0070701369: 5.22USD",0.63600000000000001,93,"FOB",2016,"590USD"," ISO 9001:2008 ","WB-12-1343","pre-qualified: 17 Dec 2012","CHEARI","May,2017","30 - 60","50 - 100","─"]
["E003/035","Comply","Not comply","Type 1","Not Applicable","Not fully compliant","Combined ref.and fr.","TCW2000 SDD","SDD","Luxembourg","B Medical Systems","Temperate","R600a","+32°C","+32°C"," +5°C","Solar direct drive","127 x 78 x 91 ","Electric - compression","SDD",99,118,"Not applicable","Not indicated","Not indicated","85 hours 24 min",3.5,42,2.4,"14.4kg","Not indicated","4 baskets; 24 waterpacks 0.6L; 4 keys; documentation and instructions","Secop","BD35K",180,"Compressor: 296.9702.09; 125.50€; Ebox: 296.9705.24; 128.79€\nElectronic thermostat: 292.2009.05; 117.72€;Sensor for e-thermostat: 2969804.20; 8.86€\nE control panel: 296.3602.82; 15.97€; Fan compressor: 292.9960.06; 72.48€\nMain switch: 292.2044.18; 6.17€",1.07,125,"EXW",2016,"1-39 units: G1, 7484€; G2, 8580€; 40-99 units: G1, 7126€; G2, 8172€;  >100 units: G1, 6789€; G2, 7782€"," ISO 9001:2008  ISO 14001","WHO- 12-017","pre-qualified: 17 Dec 2012","CEMAFROID SAS","May,2017","90 - 120","50 - 100","radiation reference period 3.5 kWh/m2/day"]
["E003/036","Comply","Comply","Type 1","Comply","Fully compliant","Refrigerator","ZLF 100AC","Electric Mains","South Africa","Zero Appliances","Hot ","R134a ","+43°C ","+43°C "," +5°C","Electric Mains 220-240V 50/60Hz;#2;#Electric Mains 115/60Hz","178 x 85 x 71 ","Electric - compression","Electric Mains",99,124,"113.7 hours","1.96 kWh/24h","4.09 kWh/24h","Not applicable","Not applicable","Not applicable","Not applicable","Not applicable","Not applicable","3 shelves; liquid PCM to mix with water.\nOptional: extra shelves, drawers, plywood packaging, 2 padlocks","Zero Appliances","ZR86AA",null,"External solar thermometer, IMP60: 33.00USD\nCompressor, IMPC20: 158.00USD\nCondenser and fan, IMP65: 187.00USD\nElectronic controller (thermostat), IMP70: 80.00USD",1.1319999999999999,100,"EXW",2016,"1-49 units: 2,015USD 50-99 units: 1965USD 100 and more: 1914USD"," ISO 9001:2008 ","100889510MKS-001","pre-qualified: 14 Feb 2013","Intertek UK","May,2017","90 - 120","50 - 100","Unit uses Sure Chill® technology\nHoldover time has been carried out while not fully charged."]
["E003/037","Comply","Comply","Type 1","Not Applicable","Fully compliant","Refrigerator","ZLF100DC","SDD","South Africa","Zero Appliances","Hot ","R600a","+43°C ","+43°C "," +5°C","Solar direct drive","180 x 85 x 73 ","Electric - compression","SDD",99,124,"Not applicable","Not indicated","Not indicated","170.1 hours",3.5,"Not applicable","Not applicable","Not applicable","Not applicable","3 shelves; Liquid PCM to mix with water.\nOptional: Extra shelves; drawers; Plywood packaging; 1 padlock","Secop","BD35K",180,"Compressor IMPC 151: 198.00USD\nCompressor controller IMP 152: 152.00USD\nCondenser IMP 145: 140.00USD\nFan IMP 144: 30.00USD\nThermostat IMP 012: 85.00USD",1.1319999999999999,115,"EXW",2016,"up to 49units: 3,933.00 USD 50 to 99 units: 3,834.00 USD 100 or more: 3,736.00 USD"," ISO 9001:2008 ","100963912MKS-001a Issue 2","pre-qualified: 25 Apr 2013","Intertek UK","May,2017","90 - 120","50 - 100","─"]
["E003/038","Not comply","Comply","Type 1","Comply","Not fully compliant","Refrigerator","HBC-340","Electric Mains","China; People's Republic of","Haier Medical","Hot ","R134a ","+43°C ","+43°C "," +5°C","Electric Mains 220-240V 50/60Hz","165 x 65 x 85.5 ","Electric - compression","Electric Mains",211,340,"53 hrs","2.06kWh/24h","2.13kWh/24h","Not applicable","Not applicable","Not applicable","Not applicable","Not applicable","Not applicable","Instruction manual; set of keys; baskets","Secop","NL10MF",null,"3 Hinge covers Up, 0070203941: 0.51USD; 3 Hinge covers Down, 0070203942: 0.13USD;\nHandle, 0070814623: 3.70USD\nControl pannel, 0072040234: 1.55USD, Dry filter, 0074180002A: 2.00USD; Thermometre,\n0271400001: 3.00USD; Temperature controller, 0074091494: 41.20USD; Compressor-/NL10MF,\n0070701307: 98.30USD; Ice Pack up, 0070204756: 2.80USD; Ice Pack down, 0270200225:\n5.30USD; Indicator lamp, 0075050003: 1.20USD; Basket up, 0270100218B: 3.20USD; Basket\ndown, 0270100218A: 6.50USD; Condensor, 0070803664: 17.41USD; Fan, 0075030020:\n21.20USD; Power line, 0070400252A: 6.50USD; Thermostat 0074091494: 27.6USD",1.42,165,"FOB",2016,"1180 USD"," ISO 9001:2008 ","WB-13-361, ammended WB-15-099","pre-qualified: 24 Jan 2014","CHEARI","May,2017",{"$f":"IF(U38<30,\" <30\",IF(U38<60,\"30 - 60\",IF(U38<90,\"60 - 90\",IF(U38<120,\"90 - 120\",IF(U38<300,\" >120\",IF(U38=\"Not applicable\",\"Not applicable\",0))))))","v":" >120"}," >100","─"]
["E003/039","Comply","Comply","Type 1","Not Applicable","Fully compliant","Refrigerator","BFRV15","SDD","United States","SunDanzer","Hot ","R134a ","+43°C ","+43°C "," +5°C","Solar direct drive","77.0 x 69.0 x 59.5 ","Electric - compression","SDD",15,20.27,"Not applicable","Not indicated","Not indicated","101h 19min",3.5,"Not applicable","Not applicable","Not applicable","Not applicable","Four 75 watt (or greater) solar panels (2 East and 2 West Facing); compass; 12V nominal; 23m PV wiring;\nuniversal solar panel mounting kit for ground, pole or roof with required tools and instructions for\nassembly; grounding kit (3.5” outer diameter (OD) pole not included); 2 baskets; lock; temperature\ndisplay; User’s Manual; Installation Manual; export crate","Secop","BD50F",110,"Electronic Control Unit: 101N0230, 120 USD\nElectronic Thermostat: SDZR-PCB 7.4, 70 USD\nECU Fan: 11SD001, 15 USD",1.27,147,"EXW",2016,"1-49 Units: 2,295USD 50-99 Units: 2,249USD 100+ Units: 2,195USD"," ISO 9001:2008 ","300-KLAB-13-193","pre-qualified: 13 Mar 2014","Danish Technological Institute","May,2017"," <30"," <50","Shipping dimensions include crate with solar power kit."]
["E003/040","Comply","Comply","Type 1","Not Applicable","Fully compliant","Refrigerator","VC200SDD","SDD","United Kingdom","Dulas Solar","Hot ","R600a","+43°C ","+43°C "," +5°C","Solar direct drive","73.1 x 94.5 x 128.5 ","Electric - compression","SDD",132,205.2,"Not applicable","Not indicated","Not indicated","79h 29min",3.5,"Not applicable","Not applicable","Not applicable","Not applicable","Handle with in built lock, stacking baskets, external temperature display, instruction manual","Secop","BD35K",180,"Compressor Danfoss BD35K: € 137.00\nCompressor controller Danfoss 101N0410: € 107.00\nSDD controller: € 150.00\nTemperature probe: € 5.00\nSolar thermometer: € 35.00\nFuse / surge protection pack: € 12.00",1.2,129,"Not indicated",2016,"from €4050"," ISO 9001:2008 ","Not indicated","pre-qualified: 13 Mar 2014","Danish Technological Institute","May,2017"," >120"," >100","N/A"]
["E003/041","Comply","Comply","Type 1","Not Applicable","Fully compliant","Refrigerator","VLS 054 SDD","SDD","Denmark","Vestfrost Solutions","Hot ","R600a","+43°C ","+43°C "," +5°C","Solar direct drive","85 x 72 x 60 ","Electric - compression","SDD",55.5,108,"Not applicable","Not indicated","Not indicated","72.4 hours",3.5,"Not applicable","Not applicable","Not applicable","Not applicable","Vaccine storage top basket; Self regulating temperature control; Electronic temperature reading; Locking\nlid; Manual in 6 languages; Plywood packing","Secop","BD35K",180,"Electronic temperature controller: 41.20€\nCompressor including E-box: 245.00€",0.65,85,"FCA",2016,"1-99 units: 2874€ 100 - 199 units: 2832€ 200 or more units: 2790€"," ISO 9001:2008  ISO 14001","100918190MKS-001 issue 2","pre-qualified: 01 May 2014","Intertek UK","May,2017","30 - 60","50 - 100","Solar array not included- contact manufacturer."]
["E003/042","Comply","Comply","Type 1","Not Applicable","Fully compliant","Combined ref.and fr.","TCW40SDD","SDD","Luxembourg","B Medical Systems","Hot ","R600a","+43°C ","+43°C "," +5°C","Solar direct drive","78 x 103 x 90 ","Electric - compression","SDD",36,46.6,"Not applicable","Not indicated","Not indicated","81 hours 54 min",3.5,4.8,1.8,"5.2kg (8 x 0.6L but 3.64kg of ice morning)","Not indicated","1 basket; 8 waterpacks 0.6 L; 8 waterpack holders; 2 keys; 1 brush; 1 pan for drain; documentation","Secop","BD35K",180,"Compressor: 296.9702.09: 84.48 €;E Box: 296.9705.24: 84.42 €\nController board: 296.9769.82: 107.21 €;Sensor cooler: 296.9804.73: 28 €\nSensor heater: 296.9804.72: 17.55 €;Fan compressor; 292.9960.06: 50,92 €\nMain switch: 292.2044.11;Display board: 296.9769.81: 25.46 €",0.88,120,"EXW",2016,"1-39 units: G1: 4798 €; G2: 5279 € 40-99 units: G1:4569 €; G2:5060 € > 100 units: G1: 4351 €; G2: 4791"," ISO 9001:2008  ISO 13485","WHO 13-024","pre-qualified: 27 Mar 2014","CEMAFROID SAS","May,2017","30 - 60"," <50","nominal 12 V DC solar electric array. Minimum power 250 watts at solar radiation reference period 3.5 kWh/m2/day"]
["E003/043","Comply","Comply","Type 1","Not Applicable","Fully compliant","Combined ref.and fr.","TCW 2043 SDD","SDD","Luxembourg","B Medical Systems","Hot ","R600a","+43°C ","+43°C "," +5°C","Solar direct drive","91 x 127 x 78 ","Electric - compression","SDD",70,79,"Not applicable","Not indicated","Not indicated","73 hours 54 min",3.5,42,2.5,"10.5kg","Not indicated","2 baskets; 16 waterpacks 0.6 L; 4 keys; documentation; 1 pan for drain","Secop","BD35K",180,"Compressor: 296.9702.09: 84.42 €;E Box: 296.9705.24: 84.42 €\nElectronic thermostat: 292.2009.05: 81.75 €\nSensor for e-thermostat: 296.9804.20: 6.15 €\nElectronic control panel: 296.3602.82: 11.10 €\nFan compressor; 292.9960.06: 50,92 €;Main switch: 292.2044.18: 5.89 €",1.07,160,"EXW",2016,"1-39 units: G1: 7266 €; G2:8158 € 40-99 units: G1: 6920 €; G2:7769 € > 100 units: G1: 6590 €; G2: 7399 €"," ISO 9001:2008  ISO 13485","WHO 13-025","pre-qualified: 27 Mar 2014","CEMAFROID SAS","May,2017","60 - 90","50 - 100","solar radiation reference period 3.5 kWh/m2/day"]
["E003/044","Comply","Comply","Type 1","Comply","Fully compliant","Refrigerator","ZLF150AC","Electric Mains","South Africa","Zero Appliances","Hot ","R134a ","+43°C ","+43°C "," +5°C","Electric Mains 220-240V 50/60Hz;#2;#Electric Mains 115/60Hz","190 x 85 x 72","Electric - compression","Electric Mains",128,161,128.19999999999999,1.98,2.0299999999999998,"Not applicable","Not applicable","Not applicable","Not applicable","Not applicable","Not applicable","3 shelves; liquid PCM to mix with water.\nOptional: extra shelves, drawers, plywood packaging, 2 padlocks","Zero Appliances","ZR86AA",null,"External solar thermometer, IMP60: 33.00USD\nCompressor, IMPC20: 158.00USD\nCondenser and fan, IMP65: 187.00USD\nElectronic controller (thermostat), IMP70: 80.00USD",1.22,116,"EXW",2016,"1-49 units:2492USD 50-99 units: 2368USD 100 and more units: 2308USD"," ISO 9001:2008 ","101568371MKS-001","pre-qualified: 01 Sep 2014","Intertek UK","May,2017"," >120"," >100","Unit uses Sure Chill® technology; holdover time has been carried out while not fuly charged; Net\nvolume 150L if used with ony one shelf"]
["E003/045","Comply","Comply","Type 1","Not Applicable","Fully compliant","Refrigerator","TCW3043SDD","SDD","Luxembourg","B Medical Systems","Hot ","R600a","+43°C ","+43°C "," +5°C","Solar direct drive","91 X 127 X 78","Electric - compression","SDD",89,111,"Not applicable","Not indicated","Not indicated","116 hours 41 min",3.5,"Not applicable","Not applicable","Not applicable","Not applicable","5 baskets; 33 waterpacks 0.6 L; 2 keys; documentation","Secop","BD35K",180,"Compressor: 296.9702.09: 120.63 €;E Box: 296.9705.24: 120.63 €\nElectronic thermostat: 292.2009.05: 116.80 €;Sensor for e-thermostat: 296.9804.20: 8.81 €\nElectronic control panel: 296.3602.83: 7.47 €\nFan compressor; 292.9960.06: 72,76 €;Main switch: 292.2044.18: 8.42 €",1.07,169,"EXW",2016,"1-39 units G1:5626€; G2:6110€ 40-99 units G1: 53591€; G2:5829€ >100 units G1: 5103€; G2: €"," ISO 9001:2008  ISO 13485","WHO 13-026 V2","pre-qualified: 01 Sep 2014","CEMAFROID SAS","May,2017","60 - 90","50 - 100","─"]
["E003/046","Comply","Comply","Type 1","Comply","Fully compliant","Refrigerator","GVR 50 AC","Electric Mains","India","Godrej & Boyce","Hot ","R600a","+43°C ","+43°C ","+10°C","Electric Mains 220-240V 50/60Hz","122 x 79.5 x 75","Electric - compression","Electric Mains",46.5,57.7,182,0.56000000000000005,0.64,"Not applicable","Not applicable","Not applicable","Not applicable","Not applicable","Not applicable","Shelf; RMS97749274: 3.00USD - Padlock 5 lever NAVTAL; RMS97749901: 8.50USD - Funnel; RMS97749902:\n0.80USD","Godrej & Boyce Mfg. Co. Ltd","GI8C1T1",null,"Compressor i8 50L TR AC; RCM97749257:57.00USD -\nRelay + OLP 50L TR AC; RRE97749258:2.00USD -\nRun Capacitor 50L TR100L TRAC; RFN97749263:1.00USD -\nFan MTR 50L TR100L TRAC; RFN97749259:12.00USD -\nCondenser Fan/IMPELLER; RFM97749278: 1.50USD -\nTransformer+Stabilizer ASSLY; RCM97749357: 25.00USD -\nELEC CNTRL CARD; RCC97749260: 30.00USD -\nSolar Powered Thermo BRD; RCC97749262: 10.50USD -\nDoor Hinge; RMS97749264:9.00USD -\nDoor Latch; RMS97749269:6.50USD - Door Handle; RMS97749265: 1.50USD -\nOuter gasket; RGK97749266: 3.00USD - Inner Gasket 50L; RGK97749268: 2.50USD -\nCondenser RCN97749277: 25.00USD",0.91600000000000004,125,"EXW",2016,"1500USD per unit 1470USD per unit, 10 to 99\nunits\n1425USD per unit, 100 and more\nunits"," ISO 9001:2008 ","CE-JOB-DEL-14-000503-GVR50AC","pre-qualified: 22 Dec 2014","Intertek India","May,2017","30 - 60"," <50","Optional: Integrated Voltage regulator"]
["E003/047","Comply","Comply","Type 1","Comply","Fully compliant","Refrigerator","GVR 100 AC","Electric Mains","India","Godrej & Boyce","Hot ","R600a","+43°C ","+43°C ","+10°C","Electric Mains 220-240V 50/60Hz or Electric Mains 115/60Hz","182 x 79.5 x 75","Electric - compression","Electric Mains",99,121,300.3,0.75,1.9,"Not applicable","Not applicable","Not applicable","Not applicable","Not applicable","Not applicable","Shelves; Padlock and Funnel; Instruction manual and maintenance manual","Godrej & Boyce Mfg. Co. Ltd","GI11A1T1",null,"Compressor i11 100TR AC; RCM97749256:57.00USD\nRelay +OLP 50LTR 100LTR AC; RRE97749258: 2.00USD\nCapacitor 50LTR 100LTRAC; RFN97749263:1.00USD\nFan MTR 50LTR 100LTRAC; RFN97749259: 12.00USD\nCondenser Fan/IMPELLER; RFM97749278:1.50USD\nTransformer + Stabilizer ASSLY; RCM97749357: 25.00USD\nElec.CNTRL Card 50LTR100LTRAC; RCC97749260: 30.00USD\nSolar Powered Temp Display BRD; RCC97749262: 10.50USD\nDoor Hinge; RMS97749264:9.00USD\nDoor Latch; RMS97749269: 6.50USD - Door handle; RMS97749265: 1.50USD\nOuter Gasket; RGK97749267: 3.60USD - Inner Gasket; RGK97749266: 3.00USD\nCondenser 50LTR100LTRAC; RCN97749277: 25.00USD",1.3,160,"EXW",2016,"2300USD per unit 2250USD per 10 units 2150 per 100 units"," ISO 9001:2008 ","CE-JOB-DEL-14-000503-GVR100AC","pre-qualified: 22 Dec 2014","Intertek India","May,2017","90 - 120","50 - 100","─"]
["E003/048","Comply","Comply","Type 1","Not Applicable","Fully compliant","Combined ref.and fr.","VC 150SDD","SDD","United Kingdom","Dulas Solar","Multi-zone","R600a","+43°C; +32°C","+43°C "," +5°C","Solar direct drive","735 x 992 x 1283 cm","Electric - compression","SDD",102,158.1,"Not applicable","Not indicated","Not indicated",77.989999999999995,3.5,42.9,2.04,"8.1kg","Not indicated","Handle with in built lock, stacking baskets, external temperature display, instruction manual","Secop","BD35K",180,"Compressor Danfoss BD35K: €178.00, \ncontroller Danfoss 101N0410: €140.00\nSDD controller: €191.00 – \nTemperature probe: €12.70 (per pair)\nMCB fridge / isolation switch: €19.05 – \nMCB freezer (isolation switch): €12.69\nSolar thermometer: €38.10 – \nFreezer foam lid: €38.10 – \nFreezer fan: €24.00",1.2,171,"EXW",2016,"Temperate +32°C: 6600 € per\nunit\nHot zone +43°C: 6800 € per\nunit"," ISO 9001:2008 ","300-KLAB-14-148","pre-qualified: 06 Jan 2015","Danish Technological Institute","May,2017","90 - 120"," >100","(blank)"]
["E003/049","Comply","Comply","Type 1","Not Applicable","Fully compliant","Refrigerator","GVR50DC SDD","SDD","India","Godrej & Boyce","Hot ","R600a","+43°C; +32°C","+43°C ","+10°C","Solar direct drive","121.5 X 79.5 X 75","Electric - compression","SDD",46.5,59.6,"Not applicable","Not indicated","Not indicated",134.80000000000001,3.5,"Not applicable","Not applicable","Not applicable","Not applicable","Included in price: 2 wire shelves, 1 Padlock, 1 Funnel (for installation)\nOptional (charged extra): Extra wire shelves, Plywood Packing","Secop","BD35K",180,"Compressor & Controller :RCM9774923; 280$\nFan :RFN97749232; 8 $ ( Including Impeller)\nCondenser :RFN97749232; 55 $\nElectronic control Card: RCC97749237; 45$","0.9ref + 0.4ss","125 ref + 115 ss","EXW",2016,"3450 USD per unit including solar system, 3400 USD per unit 10 - 99 unit including solar system, 3325 USD per unit , 100 and more"," ISO 9001:2008 ","CE-JOB-DEL-14-000503-\nGVR50DC","pre-qualified: 06 May 2015","Intertek UK","May,2017","30 - 60"," <50","(i) Sure Chill is a patented technology licensed by The Sure Chill Company (UK)\n(ii) Has a built in intelligent temperature control, early warning and energy management system\n(iii) Unit requires addition of clean drinking water during installation, contact manufacturer for\ninformation\n(iv) Price includes solar array (2 x 235 Wp, 24V solar panels) and ‘plug & play’ system/structure"]
["E003/050","Comply","Comply","Type 1","Not Applicable","Fully compliant","Refrigerator","GVR 100 DC","SDD","India","Godrej & Boyce","Hot ","R600a","+43°C; +32°C","+43°C ","+10°C","Solar direct drive","182 x 79.5 x 75 cm","Electric - compression","SDD",99,121,"Not applicable","Not indicated","Not indicated",175.95,3.5,"Not applicable","Not applicable","Not applicable","Not applicable","Included in price: 4 wire shelves, 1 Padlock, 1 Funnel (for installation)\nOptional (charged extra): Extra wire shelves, Plywood Packing","Secop","BD35K",180,"Compressor & Controller :RCM9774923; 280$\nFan :RFN97749232; 8 $ ( Including Impeller)\nCondenser :RFN97749232; 55 $\nElectronic control Card: RCC97749237; 45$","1.3 ref + 0.4 ss","160 ref + 115 ss","EXW",2016,"4815 USD per unit including solar system, 4710 USD per unit 10 - 99 unit including solar system, 4615 USD per unit , 100 and more"," ISO 9001:2008 ","CE-JOB-DEL-14-000503-\nGVR 100 DC","pre-qualified: 07 May 2015","Intertek India","May,2017","90 - 120","50 - 100","(i) Sure Chill is a patented technology licensed by The Sure Chill Company (UK)\n(ii) Has a built in intelligent temperature control, early warning and energy management system\n(iii) Unit requires addition of clean drinking water during installation, contact manufacturer for\ninformation\n(iv) Price includes solar array (2 x 235 Wp, 24V solar panels) and ‘plug & play’ system/structure"]
["E003/051","Comply","Comply","Type 1","Comply","Fully compliant","Refrigerator","ZLF30AC","Electric Mains","South Africa","Zero Appliances","Hot ","Not indicated","+43°C","+43°C ","+10°C","Electric Mains 220-240V 50/60Hz","102.8 x 61.9 x 56.3","Electric - compression","Electric Mains",27,30,77.2,1.6819999999999999,2556,"Not applicable","Not applicable","Not applicable","Not applicable","Not applicable","Not applicable","3 shelves; liquid PCM to mix with water\nOptional: Extra shelves; drawers; waterpacks; plywood packaging, 2 padlocks (There are 2 lockable latches per\nunit)","Zero Appliances","ZR45AA",null,"External solar thermometer: IMP60; 35.00 USD\nCompressor: IMPC1Ø; 166.00 USD\nCondenser and fan: IMP65; 196.00 USD\nElectronic controller (thermostat): IMP70; 84.00 USD",0.372,65,"EXW",2016,"1-49 units: 1192 USD 50-99 units: 1162 USD 100 or more units: 1132 USD"," ISO 9001:2008 ","101911483MKS-001","pre-qualified: 05 Jun 2015","Intertek UK","May,2017"," <30"," <50","Fitted with automatic voltage stabilised protector"]
["E003/052","Comply","Comply","Type 1","Not Applicable","Fully compliant","Refrigerator","ZLF150DC","SDD","South Africa","Zero Appliances","Hot ","R134a ","+43°C ","+43°C "," +5°C","Solar direct drive","189 x 83 x 71","Electric - compression","SDD",128,132,"Not applicable","Not indicated","Not indicated",107.9,3.5,"Not applicable","Not applicable","Not applicable","Not applicable","Additional shelves; Liquid to mix with water; Optional: extra shelves, drawers, waterpacks, plywood packaging, 2\npadlocks","Secop","BD50F",110,"Compressor IMPC Ø7: 257.00 USD\nCompressor Controller IMP 152: 164.00 USD\nCondenser IMP145: 53.00 USD\nFan IMP 144: 33.00 USD\nThermostat IMP 012: 92.00 USD\n24V Surge Protector ELSP15: 110.00 USD",1.22,120,"EXW",2016,"1-49 units: 4,355 USD 50-99 units: 4,246 USD 100 or more units: 4,137 USD"," ISO 9001:2008 ","101861736MKS-001","pre-qualified: 05 Jun 2015","Intertek UK","May,2017"," >120"," >100","Unit uses Sure Chill ® technology. Entire system is plug and play with MC4 (MIC) connectors, on\nboard isolator and surge protector. The array frame is roof adjustable.\nPrice does not include solar system: 1,350 USD;"]
["E003/053","Comply","Comply","Type 1","Not Applicable","Fully compliant","Refrigerator","VLS094 SDD","SDD","Denmark","Vestfrost Solutions","Hot ","R600a","+43°C ","+43°C "," +5°C","Solar direct drive","86.0 x 93.0 x 70.0 cm","Electric - compression","SDD",92,151,"Not applicable","Not indicated","Not indicated","72.5 hours",3.5,"Not applicable","Not applicable","Not applicable","Not applicable","Mandatory vaccine storage top- basket. Self regulating temperature control.\nElectronic temperature reading. Locking lid. Manual in 6 languages.\nPlywood packing.","Secop","BD35K",180,"Electronic temperature controller: 41,20€\nCompressor, inclusive E-box: 245,00€",0.83,108,"FCA",2016,"1-99 units: 3214€ 100-199 units: 3167€ 200 or more units: 3120€","ISO 9001:2008 - ISO 14001","101809330MKS-001 Issue 1","pre-qualified: 19 Jun 2015","Intertek UK","May,2017","90 - 120","50 - 100","Energy requirements: 12V dc solar electric array. 360W radiation reference period\n3.5 kWh/m2/day. Starting load at 2000rmp 4.13A\nSolar array not included- contact manufacturer."]
["E003/054","Comply","Comply","Type 1","Not Applicable","Fully compliant","Refrigerator","VLS154 SDD","SDD","Denmark","Vestfrost Solutions","Hot ","R600a","+43°C ","+43°C "," +5°C","Solar direct drive","86.0 x 127.0 x 70.0 cm","Electric - compression","SDD",170,248,"Not applicable","Not indicated","Not indicated","73.4 hours",3.5,"Not applicable","Not applicable","Not applicable","Not applicable","Mandatory vaccine storage top- basket. Self regulating temperature control; Electronic temperature reading.\nLocking lid. Manual in 6 languages; Plywood packing","Secop","BD35K",180,"Electronic temperature controller: 41,20€\nCompressor, inclusive E-box: 245,00€",0.83,108,"FCA",2016,"1-99 units: 4053€ 100-199 units: 39945€ 200 or more units: 3935€","ISO 9001:2008 - ISO 14001","300-KLAB-15-115","pre-qualified: 19 Jun 2015","Danish Technological Institute","May,2017"," >120"," >100","Energy requirements: 12V dc solar electric array. 360W radiation reference period 3.5 kWh/m2/day.\nStarting load at 2000rmp 4.13A\nSolar array not included- contact manufacturer."]
["E003/055","Comply","Not comply","Type 1","Not Applicable","Not fully compliant","Refrigerator","ZLF30DC SDD","SDD","South Africa","Zero Appliances","Temperate","R600a","+32°C","+32°C"," +5°C","Solar direct drive","102.5 x 56 x 60 cm","Electric - compression","SDD",27,33,"Not applicable","Not indicated","Not indicated","77h 05 min",3.5,"Not applicable","Not applicable","Not applicable","Not applicable","Additional, Shelves, Liquid to dilute with water,\nOptional: extra shelves, drawers,waterpacks, plywood packaging, 1 padlock","Secop","BD35K",null,"Compressor IMPCØ7: 257.00 USD\nCompressor controller IMP152: 164.00 USD\nCondenser IMP145: 53.00 USD\nFan IMP144: 33.00 USD\nThermostat IMP012: 92.00 USD\n24V Surge protector ELSP15: 110.00 USD",0.372,65,"EXW",2016,"1-49 units: 2,064 USD 50-99 units: 2,013 USD 100 or more units: 1,961 USD"," ISO 9001:2008 ","300-KLAB-15-132","pre-qualified: 9 Sept 2015","Danish Technological Institute","May,2017"," <30"," <50","Unit uses Sure Chill ® technology. Entire system is plug and play with MC4 (MIC) connectors, on\nboard isolator and surge protector. The array frame is roof adjustable."]
["E003/056","Not Applicable","Not Applicable","Not Applicable","Not Applicable","Not Applicable","Refrigerator","HTC-60H","SDD (AB)","China; People's Republic of","Haier Medical","Hot ","R600a","+43°C ","+43°C "," +5°C","Solar direct drive with ancillary battery","78.8 x 65.4 x 87.5 cm","Electric - compression","SDD (AB)",21,60,"109 hours 21 min",0.77600000000000002,0.67100000000000004,"Not applicable","Not indicated","Not applicable","Not applicable","Not applicable","Not applicable","Baskets\nSet of keys\nInstruction manual","Secop","BD35K",180,"Thermostat\nMain switch\nElectric controller\nFan DC 12V\nCompressor scope\nRechargeable battery (12V 10Ah)",0.7,110,"FCA",2106,"2600 USD (1-99 Units) 2550 USD (100-199 Units) 2500 USD (>200 units)"," ISO 9001:2008  ISO 13485","WB-15-226","pre-qualified: 17Sept 2015","CHEARI","May,2017"," <30"," <50","(blank)"]
["E003/057","Comply","Comply","Type 1","Not Applicable","Fully compliant","Combined ref.and fr.","HTCD-160","SDD","China; People's Republic of","Haier Medical","Hot ","R600a","+43°C ","+43°C "," +5°C","Solar direct drive","169.5 x 86.5 x 82.5","Electric - compression","SDD",100,120,"Not applicable","Not indicated","Not indicated","121 hrs 27 mins",3.5,40,2.08,10.68,"Not indicated","2 shelves\n2 padlocks\nInstruction manual\nWater injection device\nWater preservative","Secop","BD35K",180,"Main switch\nElelctric controller\nFan DC 24V\nCompressor scope\nSolar Display",1.6,168,"FCA",2016,"6300 USD each (1-99 units) 6200 USD each (100-199 units) 6100 USD each (>200 units)"," ISO 9001:2008  ISO 13485","WB-15-227","pre-qualified: 17Sept 2015","CHEARI","May,2017","90 - 120"," >100","(blank)"]
["E003/058","Comply","Comply","Type 1","Not Applicable","Fully compliant","Refrigerator","VC200-110 SDD","SDD","United Kingdom","Dulas Solar","Hot ","R600a","+43°C ","+43°C "," +5°C","Solar direct drive","74.0 x 95.9 x 128.2","Electric - compression","SDD",110,205,"Not applicable","Not indicated","Not indicated","78h 09 mins",3.5,"Not applicable","Not applicable","Not applicable","Not applicable","Handle with in built lock; external temperature display; instruction manual;\nBaskets: 47.0 x 30.5 x 21.5 cm = 22L","Secop","BD35K",180,"Compressor Danfoss BD35K: €178.00 - Controller Danfoss 101N0410: €140.00\nSDD controller: €191.00 - Temperature probe: €12.70 (per pair)\nSolar thermometer: €38.10 - MCB fridge / isolation switch: €19.05\nTemperature probe: € 5.00 - Solar thermometer: € 35.00\nFuse / surge protection pack: € 12.00",1.2,129,"EXW",2016,"from €3400 depending on location"," ISO 9001:2008 ","300-KLAB-13-194","pre-qualified: 18Sept 2015","Danish Technological Institute","May,2017","90 - 120"," >100","This product is a modification of the VC200 SDD to a smaller vaccine storage volume (from 132L to\n110L)"]
["E003/059","Comply","Comply","Type 1","Not Applicable","Fully compliant","Refrigerator","VC200-88 SDD","SDD","United Kingdom","Dulas Solar","Hot ","R600a","+43°C ","+43°C "," +5°C","Solar direct drive","74.0 x 95.9 x 128.2","Electric - compression","SDD",88,205,"Not applicable","Not indicated","Not indicated","78h 09 mins",3.5,"Not applicable","Not applicable","Not applicable","Not applicable","Handle with in built lock; external temperature display; instruction manual;\nBaskets (4): 47.0 x 30.5 x 21.5 cm = 22L","Secop","BD35K",180,"Compressor Danfoss BD35K: €178.00 - Controller Danfoss 101N0410: €140.00\nSDD controller: €191.00 - Temperature probe: €12.70 (per pair)\nSolar thermometer: €38.10 - MCB fridge / isolation switch: €19.05\nTemperature probe: € 5.00 - Solar thermometer: € 35.00\nFuse / surge protection pack: € 12.00",1.2,129,"EXW",2016,"from €4280 per complete system"," ISO 9001:2008 ","300-KLAB-13-194-3","pre-qualified: 23 Sept 2015","Danish Technological Institute","May,2017","60 - 90","50 - 100","This product is a modification of the VC200 SDD to a smaller vaccine storage volume (from 132L to\n88L)"]
["E003/060","Not Applicable","Not Applicable","Type 1","Comply","Fully compliant","Freezer","DW-25W147","Electric Mains","China; People's Republic of","AUCMA C0. Ltd.","Hot ","R134a ","+43°C ","+43°C "," +5°C","Electric Mains 220-240V 50/60Hz","790x595x880 mm","Electric - compression","Electric Mains",96,"Not applicable","6hr 44mins",3.31,2.81,"Not applicable","Not applicable",147,14.5,"19.4kg","Not indicated","─","Secop","NL6.1FT",null,"Dry filter (1); Compressor parts (1); process pipe (1); wire pressing block (1); screw M5X10 (1); Nut M5 (1);\nWasher 5 (1); Nameplate ciruit diagram (1); self tapping screws ST4.8X16-C-H (1); compressor chamber cover\n(1); self tapping screws ST4.0X14 (1)",0.41,45,"EXW",2016,"1-99 units, USD 450 100-199 units, USD 430 >200 units, USD 400"," ISO 9001:2008 ","WB-14-039","pre-qualified: 2 Nov 2015","CHEARI","May,2017","90 - 120","50 - 100","─"]
["E003/061","Not Applicable","Not Applicable","Type 1","Comply","Fully compliant","Freezer","DW-25W300","Electric Mains","China; People's Republic of","AUCMA C0. Ltd.","Hot ","R134a ","+43°C ","+43°C "," +5°C","Electric Mains 220-240V 50/60Hz","1226x790x945 mm","Electric - compression","Electric Mains",240,"Not applicable","58hr 36Mins",3.37,3.54,"Not applicable","Not applicable",300,38.299999999999997,"44.3kg","Not indicated","─","Secop","NL7FT ",null,"Dry filter (1); Compressor parts (1); process pipe (1); wire pressing block (1); screw M5X10 (1); Nut M5 (1);\nWasher 5 (1); Nameplate ciruit diagram (1); self tapping screws ST4.8X16-C-H (1); compressor chamber cover\n(1); self tapping screws ST4.0X14 (1)",0.92,75,"EXW",2016,"1-99 units, USD 540 100-199 units, USD 520 >200 units, USD 490"," ISO 9001:2008 ","WB-14-041","pre-qualified: 2 Nov 2015","CHEARI","May,2017"," >120"," >100","─"]
["E003/062","Comply","Comply","Type 1","Comply","Fully compliant","Refrigerator","VLS 200A","Electric Mains","Denmark","Vestfrost Solutions","Not indicated","R600a","+43°C ","+43°C "," +5°C","Electric Mains 220-240V 50/60Hz","85 x 73 x 70 cm","Electric - compression","Electric Mains",60,113,54,0.56999999999999995,0.57999999999999996,"Not applicable","Not applicable","Not applicable","Not applicable","Not applicable","Not applicable","3 vaccine storage baskets. Self regulating temperature control. Electronic temperature reading. Locking lid.\nManual in 6 languages, Plywood packing.","Secop","TLES7KTK",null,"Thermostat SICOP 7020127; 19.12€\nCompressor SICOP 6510219; 88.50€",0.57999999999999996,70,"FCA",2016,"669€ per unit - 1-99 units 559€ per unit - 100 - 199 units 549€ per unit - 200 and more",null,"BOM no 1 - n113","pre-qualified: 8 Mar 2016","Danish Technological Institute","May,2017","60 - 90","50 - 100","Identical appliance than VLS200 with an additional insulation layer for freeze-protection"]
["E003/063","Comply","Comply","Type 1","Comply","Fully compliant","Refrigerator","VLS 300A","Electric Mains","Denmark","Vestfrost Solutions","Hot ","R600a","+43°C ","+43°C "," +5°C","Electric Mains\n115/60Hz;#8;#Electric Mains 220-\n240V 50/60Hz or Electric Mains\n115/60Hz optional","85 x 92 x 70 cm","Electric - compression","Electric Mains",98,157,"55.5 hours",0.6,0.69,"Not applicable","Not applicable","Not applicable","Not applicable","Not applicable","Not applicable","5 vaccine storage baskets. self-regulating temperature control; electronic temperature reading; Locking lid;\nManual in 6 languages; Plywood packing","Secop","TLES7KTK",null,"Thermostat, Danfoss 7020127: 19.12€\nCompressor, Danfoss 6510219: 88.50€",0.75,93,"FCA",2016,"1 - 99 units: 822€ 100 - 199 units: 810€ 200 units and more: 798€",null,"12057110OMKS-002a ammended","pre-qualified: 8 Mar 2016","Intertek UK","May,2017","90 - 120","50 - 100","New version of VLS300 amended for freeze protection"]
["E003/064","Comply","Comply","Type 1","Comply","Fully compliant","Refrigerator","VLS 350A","Electric Mains","Denmark","Vestfrost Solutions","Hot ","R600a","+43°C ","+43°C "," +5°C","Electric Mains\n115/60Hz;#8;#Electric Mains 220-\n240V 50/60Hz or Electric Mains\n115/60Hz optional","85 x 113 x 70 cm","Electric - compression","Electric Mains",127,209,"54.7 hours",0.62,0.64,"Not applicable","Not applicable","Not applicable","Not applicable","Not applicable","Not applicable","7 vaccine storage baskets; self-regulating temperature control; electronic temperature reading; locking lid; manual\nin 6 languages; plywood packing.","Secop","NLE9KTK",null,"Thermosta danfoss7020276, Compressor SECOP",0.85,110,"FCA",2016,"1 - 99 units: 924€ 100 - 199 units: 910€ 200 and more units: 897€",null,"12057110OMKS-003a ammended","pre-qualified: 8 Mar 2016","Intertek UK","May,2017"," >120"," >100","New version of the VLS 350 for freeze-protection"]
["E003/065","Comply","Comply","Type 1","Comply","Fully compliant","Refrigerator","VLS 400A ","Electric Mains","Denmark","Vestfrost Solutions","Hot ","R600a","+43°C ","+43°C "," +5°C","Electric Mains\n115/60Hz;#8;#Electric Mains 220-\n240V 50/60Hz or Electric Mains\n115/60Hz optional","86.0 x 127.0 x 70.0 cm","Electric - compression","Electric Mains",145,235,"55 hours",0.67,0.69,"Not applicable","Not applicable","Not applicable","Not applicable","Not applicable","Not applicable","vaccine storage baskets; self-regulating temperature control; external electronic temperature reading; locking lid;\nmanuals; plywood packing","Secop","NLE9KTK",null,"Thermostat Danfoss; 7020109-01: € 19.12\nCompressor - Danfoss; 8-036038255; € 102.0",1.02,126,"FCA",2016,"1 - 99 units: 1005€ 100 - 199 units: 990€ 200 and more: 976€",null,"A66543 ammended","pre-qualified: 8 Mar 2016","Intertek UK","May,2017"," >120"," >100","(blank)"]
["E003/066","Comply","Comply","Data not available","Data not available","Fully compliant","Refrigerator","TCW 4000 AC","Electric Mains","Luxembourg","B Medical Systems","Hot ","R600a","+43°C ","+43°C "," +5°C","Electric Mains 220-240V\n50/60Hz;#2;#Electric Mains\n115/60Hz","162.5 x 78 x 91.5 cm","Electric - compression","Electric Mains",240,249,"77.3 hours",0.85,1.24,"Not applicable","Not applicable","Not applicable","Not applicable","Not applicable","Not applicable","6 baskets; 2 keys; 1 brush; 2 spacers; documentation","Secop","NLE9KTK",null,"Compressor: 296.9701.63: 164,69 €\nController board: 296.9769.93: 143,39 €\nSensor cooler: 296.9804.48: 15,64 €\nFan compressor; 292.9960.06: 66,05 €\nMain switch: 292.2044.20: 7,67 €\nDisplay board: 296.9769.81: 38,39 €\nSwitching power supply: 32,37 €",0.88,174,"EXW",2016,"1-39 units: 3307 € 40-99 units: 3141 € > 100 units: 2984 €",null,"WHO-15034-Corr 2","pre-qualified: 8 Mar 2016","CEMAFROID SAS","May,2017"," >120"," >100","(blank)"]
["E003/067","Comply","Comply","Data not available","Not Applicable","Fully compliant","Refrigerator","TCW 15R SDD","SDD","Luxembourg","B Medical Systems","Hot ","R600a","+43°C ","+43°C ","+10°C","Solar direct drive","95.0 x 73.0 x 73.0","Electric - compression","SDD",16,26.5,"Not applicable","Not indicated","Not indicated",81.8,3.5,"Not applicable","Not applicable","Not applicable","Not applicable","2 baskets; 2 keys; 1 brush; 2 spacers; documentation","Secop","BD35K",180,"Compressor: 296.9702.09: 116,94 €\nE Box: 296.9705.12: 104,96 €\nController board: 296.9769.82: 138.28 €\nSensor cooler: 296.9804.73: 46,14 €\nSensor heater: 296.9804.72: 35,17 €\nFan compressor; 292.9960.06: 72,82 €\nMain switch: 292.2044.11: 2,76 €\nDisplay board: 296.9769.81: 38,32 €",0.65,85,"EXW",2016,"1-39 units: G1: 3969 €; G2:\n4244 €\n40-99 units: G1: 3771 €; G2:\n4032 €\n> 100 units: G1: 3582 €; G2: 3830\n€",null,"WHO-16-002","pre-qualified: 25 may 2016","CEMAFROID SAS","May,2017"," <30"," <50","prices include the solar system: Generator 1 = roof fixed; Generator 2 = roof adjustable\nnominal 12 V DC solar electric array. Minimum power 250 watts at solar radiation reference period\n3.5 kWh/m2/day"]
["E003/068","Not comply","Comply","Data not available","Not Applicable","Not fully compliant","Refrigerator","TCW 40R SDD","SDD","Luxembourg","B Medical Systems","Hot ","R600a","+43°C ","+43°C "," +5°C","Solar direct drive","90 x 78 x 103","Electric - compression","SDD",36,46.6,"Not applicable","Not indicated","Not","81 hours 54 min",3.5,"Not applicable","Not applicable","Not applicable","Not applicable","1 basket; 2 keys; 1 brush; 1 pan for drain; documentation","Secop","BD35K",180,"Compressor: 296.9702.09: 116,94 €\nE Box: 296.9705.24: 114,99 €\nController board: 296.9769.82: 153,35.21 €\nSensor cooler: 296.9804.73: 46,14 €\nSensor heater: 296.9804.72: 35,17 €\nFan compressor; 292.9960.06: 72,82 €\nMain switch: 292.2044.11: 2,76 € £\nDisplay board: 296.9769.81: 38,32 €",0.88,120,"EXW",2016,"1-39 units: G1: 4532 €; G2: 4840 € 40-99 units: G1:4305 €; G2: 4597 € > 100 units: G1: 4091 €; G2: 4368",null,"WHO-13-024","pre-qualified: 16 Mar 2016","CEMAFROID SAS","May,2017","30 - 60"," <50","This appliance is a modified model of E003/042; nominal 12 V DC solar electric array. Minimum\npower 250 watts at solar radiation reference period 3.5 kWh/m2/day"]
["E003/069","Comply","Comply","Type 1","Not Applicable","Fully compliant","Refrigerator","VLS 024 SDD","SDD","Denmark","Vestfrost Solutions","Hot ","R600a","+43°C ","+43°C "," +5°C","Solar direct drive","83.0 x55.5 x 64.5 cm","Electric - compression","SDD",25.5,36,"Not applicable","Not indicated","Not indicated","81.7 hours",3.5,"Not applicable","Not applicable","Not applicable","Not applicable","Mandatory vaccine storage top- basket. Self regulating temperature control. Electronic temperature reading.\nLocking lid + keys. Manual in 6 languages. Plywood packing.","Secop","BD35K",180,"Electronic temperature controller: 7020274 41,20€\nCompressor, inclusive E-box : 8-036510214 245,00€",0.63,75,"FCA",2016,"1-99 units: 2585€ 100-199 units:2548€ 200 or more units: 2510€",null,"300-KLAB-15-174","pre-qualified: 8 April  2016","Danish Technological Institute","May,2017"," <30"," <50","Energy requirements: 12V DC solar electric array. 360W radiation reference period 3.5kWh/m2/day.\nStarting load at 2000RPM 4,13A\nPrices include the solar panel kit of 4x90Wp, roof adjustable, plug & play."]
["E003/070","Not Applicable","Comply","Type 1","Comply","Not fully compliant","Combined ref.and fr.","VLS 064 RF","Electric Mains","Denmark","Vestfrost Solutions","Hot ","R134a ","+43°C ","+43°C ","+10°C","Electric Mains\n115/60Hz;#1;#Electric Mains 220-\n240V 50/60Hz","84.5 x 72.5x 71.0 cm","Electric - compression","Electric Mains",52.5,75,20.2,1.5,1.51,"Not applicable","Not applicable",5.0999999999999996,1.6,"6X0.6L",1.8,"Mandatory vaccine storage top- basket. Self regulating temperature control. Electronic temperature reading. 6\nwater-packs. Locking lid + keys. Manual in 6 languages.\nPlywood packing.","Secop","NL7.3MF",null,"Thermostat: 7095034; 40,58€\nCompressor: 8-036038987; 120,59€",0.57999999999999996,98,"FCA",2016,"1-99 units: 954€ 100-199 units: 940€ 200 or more units: 925€",null,"300-KLAB-15-181","pre-qualified: 8 April  2016","Danish Technological Institute","May,2017",{"$f":"IF(U70<30,\" <30\",IF(U70<60,\"30 - 60\",IF(U70<90,\"60 - 90\",IF(U70<120,\"90 - 120\",IF(U70<300,\" >120\",IF(U70=\"Not applicable\",\"Not applicable\",0))))))","v":"30 - 60"},"50 - 100","(blank)"]
["E003/071","Not Applicable","Not Applicable","Data not available","Data not available","Fully compliant","Freezer","TFW 3000 AC","Electric Mains","Luxembourg","B Medical Systems","Hot ","R290","+43°C ","+43°C ","Not applicable","Electric Mains 220-240V 50/60Hz or Electric Mains, 115/60Hz optional","91.0 x 127.0 x 78.0","Electric - compression","Electric Mains","Not applicable","Not applicable","Not applicable",2.15,2.2000000000000002,"Not applicable","Not applicable",204,"54 x 0.6L - 32","162X0.6L","Not indicated","6 baskets; 54 waterpacks 0.6 L; 2 keys; 1 brush; 2 spacers, documentation","Embraco","FFU130UAX",null,"Compressor: 296.9701.72: 179,09 €\nController board: 296.9769.95: 139,09 €\nSensor cooler: 296.9804.48: 15,64 €\nFan compressor: 296.9759.51: 31,67 €\nMain switch: 292.2044.20: 7,67􀀃􀂼􀀃􀂅\nDisplay board: 296.9769.81: 38,39 €\nSwitch power supply: 294.2943.75: 87,03 €","1,07",126,"EXW",2016,"1-39 units: 2789 € 40-99 units: 2649 € > 100 units: 2517 €",null,"WHO-16-001","pre-qualified: 25 may 2016","CEMAFROID SAS","May,2017","Not applicable",{"$f":"IF(U71<50,\" <50\",IF(U71<100,\"50 - 100\",IF(U71<500,\" >100\",IF(U71=\"Not applicable\",\"Not applicable\",0))))","v":"Not applicable"},"This appliance is a waterpacks fast freezer - it uses propane as a coolant."]
["E003/072","Comply","Comply","Type 1","Comply","Fully compliant","Refrigerator","VC 225 ILR","Electric Mains","(blank)","Dulas Solar","Hot ","R600a","+43°C ","+43°C "," +5°C","Electric Mains 220-240V 50/60Hz\nor Electric Mains 115/60Hz\noptional","98.6 x 128.7 x 78.0","Electric - compression","Electric Mains",203.2,184.5,94,0.80300000000000005,0.76400000000000001,"Not applicable","Not applicable","Not applicable","Not applicable","Not applicable","Not applicable","Include external voltage regulator","Secop","BD35K",180,"Dulas PS-ILR-001 power supply unit: €260.00\nCompressor Danfoss BD35K: €178.00\nController Danfoss 101N0410: €140.00\nDulas refrigerator controller: €191.00\nTemperature probe: €12.70 (per pair)\nSolar thermometer: €38.10\nMCB fridge/Isolation switch: €19.05\nSolar thermometer: € 35.00\nFuse/ surge protection pack: € 12.00",1.29,172,"FCA",2016,"$ 2600 per unit",null,"300-KLAB-16-110","pre-qualified: 25 may 2016","Danish Technological Institute","May,2017"," >120"," >100","Include external voltage regulator"]
["E003/073","Not Applicable","Not Applicable","Data not available","Data not available","Fully compliant","Freezer","TFW 40 SDD","SDD","Luxembourg","B Medical Systems","Hot ","R600a","+43°C ","+43°C ","Not applicable","Solar direct drive","90 x 78 x 103 cm","Electric - compression","SDD","Not applicable","Not applicable","Not applicable","Not indicated","Not indicated","5 days",3.5,64,"2.16 (4 packs of 0.6L)","2.16 kg/24h (4 packs of 0.6L)\n11.24 kg (20 waterpacks)","Not indicated","8 waterpacks 0.6 L; 8 waterpacks holders; 2 keys; 1 brush; 2 spacers; documentation","Secop","BD35K",180,"Compressor: 296.9702.09: 116,19 €\nE Box: 296.9705.24: 114,32 €\nController board: 296.9769.92: 141,97 €\nSensor cooler: 296.9804.48: 15,64 €\nFan compressor; 292.9960.06: 66,05 €\nMain switch: 292.2044.11: 2,73􀀃􀂼􀀃􀂅\nDisplay board: 296.9769.81: 38,39 €","0,88",119,"EXW",2016,"1-39 units: G1: 4798 €; G2:\n5279 €\n40-99 units: G1: 4569 €; G2:\n5030 €\n> 100 units: G1: 4351 €; G2: 4791\n€",null,"WHO-15036 Corr 1","pre-qualified: 25 may 2016","CEMAFROID SAS","May,2017","Not applicable","Not applicable","prices include the solar system: Generator 1 = roof fixed; Generator 2 = roof adjustable\nEnergy sources: nominal 12 V DC solar electric array. Minimum power 250 watts at solar radiation\nreference period 3.5 kWh/m2/day"]
["E003/074","Comply","Comply","Type 1","Not Applicable","Fully compliant","Combined ref.and fr.","HTCD 90 SDD","SDD","China; People's Republic of","Haier Medical","Hot ","R600a","+43°C ","+43°C "," +5°C","Solar direct drive","112 x 65.4 x 87.5 cm","Electric - compression","SDD",37.5,58,"Not applicable","Not indicated","Not indicated",114.9,3.5,32,2.08,12,"Not indicated","Baskets; manuals; keys","Secop","BD35K",180,"Main switch: 274000354; USD 12.00\nElectric controller: 274000352; USD 45.00\nFan: 274000351; USD 8.00\nCompressor scope: 0274000118A; USD 230.00\nSolar Display: 274000357; USD 8.00",0.98,108,"FCA",2016,"1-99 units: 4500 USD 100-199 units: 4450 USD >200 units: 4400 USD",null,"WB-16-153","pre-qualified: 6 June 2016","CHEARI","May,2017","30 - 60"," <50","Voltage of Solar Panel 24V; Power of Solar Panel 180W *4"]
["E003/075","Comply","Comply","Type 1","Not Applicable","Fully compliant","Refrigerator","HTC 40 SDD","SDD","Not indicated","Haier Medical","Hot ","R600a","+43°C ","+43°C "," +5°C","Solar direct drive","78.8 x 65.4 x 87.5 cm","Electric - compression","SDD",22.5,40,"Not applicable","Not indicated","Not indicated",117,3.5,"Not applicable","Not applicable","Not applicable","Not applicable","2 baskets; manuals; keys","Secop","BD35K",180,"Main switch: 274000354; USD 12.00\nElectric controller: 274000352; USD 45.00\nFan: 274000351; USD 8.00\nCompressor SECOP: 0274000118A; USD 230.00\nSolar Display: 274000357; USD 8.00",0.7,75,"FCA",2016,"1-99 units: 2700 USD 100 - 199 units: 2650 USD >200 units: 2600 USD",null,"WB-16-151","pre-qualified: 6 June 2016","CHEARI","May,2017"," <30"," <50","Prices include solar system; 24V solar Panel; 180W *2 Solar Panel power"]
["E003/076","Comply","Comply","Type 1","Not Applicable","Fully compliant","Refrigerator","HTC 110 SDD","SDD","Not indicated","Haier Medical","Hot ","R600a","+43°C ","+43°C "," +5°C","Solar direct drive","78.8 x 65.4 x 112.8 cm","Electric - compression","SDD",59,110,"Not applicable","Not indicated","Not",96,3.5,"Not applicable","Not applicable","Not applicable","Not applicable","4 baskets; manuals; keys","Secop","BD35K",180,"Main switch: 274000354; USD 12.00\nElectric controller: 274000352; USD 45.00\nFan: 274000351; USD 8.00\nCompressor SECOP: 0274000118A; USD 230.00\nSolar Display: 274000357; USD 8.00",0.98,94,"FCA",2016,"1-99 units: 3000 USD 100-199 units: 2950 USD >200 units: 2900 USD",null,"WB-16-152","pre-qualified: 6 June 2016","CHEARI","May,2017","30 - 60","50 - 100","Prices include solar system; 24V Solar Panel s, Power of Solar Panel 180W *2"]
["E003/077","Comply","Comply","Type 1","Not Applicable","Fully compliant","Combined ref.and fr.","TCW 15 SDD","SDD","Luxembourg","B Medical Systems","Hot ","R600a","+43°C ","+43°C "," +5°C","Solar direct drive","95x73x73 cm","Electric - compression","SDD",16,26.5,"Not applicable","Not indicated","Not indicated","Not applicable",3.5,2.4,1.97,"4X0.6 L","Not indicated","2 baskets, 4 water packs 0.6 L, 4 water pack holder, 2 key , 1 brush, 2 spacer , documentation",null,null,null,"Compressor , E box. , Controller board",0.65,87,"EXW",2016,"1-39 units: G1: 4002 €; G2:\n4277 €\n40-99 units: G1: 3802 €; G2:4063 \n4032 €\n> 100 units: G1: 3582 €; G2: 3830\n€"," ISO 9001:2008 - ISO 14001 ","WHO 1604, WHO 1605","pre-qualified: 13 Sept 2016","CEMAFROID SAS","May,2017",{"$f":"IF(U77<30,\" <30\",IF(U77<60,\"30 - 60\",IF(U77<90,\"60 - 90\",IF(U77<120,\"90 - 120\",IF(U77<300,\" >120\",IF(U77=\"Not applicable\",\"Not applicable\",0))))))","v":" <30"},{"$f":"IF(U77<50,\" <50\",IF(U77<100,\"50 - 100\",IF(U77<500,\" >100\",IF(U77=\"Not applicable\",\"Not applicable\",0))))","v":" <50"}]
["E003/078","Comply","Comply","Type 1","Not Applicable","Fully compliant","Refrigerator","VC50SDD","SDD","United Kingdom","Dulas Solar","Hot ","R600a","+43°C ","+43°C "," +5°C","Solar direct drive","960mmX1000mmX740mm","Electric - compression","SDD",52.5,82,"Not applicable","Not indicated","Not indicated","74hrs 15 min",3.5,"Not applicable","Not applicable","Not applicable","Not applicable","Handle with in-built lock; External temperature display; Instruction manual; Basket; replaceable lid gaskets",null,null,null,"Compressor Danfoss BD35K: €178.00 - Controller Danfoss 101N0420: €140.00 Dulas SDD controller: €191.00 -\r\nTemperature probe: €12.70 (per pair) Solar thermometer: €38.10 - MCB fridge/Isolation switch: €19.05 -\r\nTemperature probe: €5.00 - Solar thermometer: € 35.00 - Lid gaskets: €45.00",1.02,129,"FCA",2016,"From €2750 per complete system","ISO 9001:2008 - ISO 14001","300-KLAB-16-147","pre-qualified: 04 Oct 2016","Danish Technological Institute",null,{"$f":"IF(U78<30,\" <30\",IF(U78<60,\"30 - 60\",IF(U78<90,\"60 - 90\",IF(U78<120,\"90 - 120\",IF(U78<300,\" >120\",IF(U78=\"Not applicable\",\"Not applicable\",0))))))","v":"30 - 60"},{"$f":"IF(U78<50,\" <50\",IF(U78<100,\"50 - 100\",IF(U78<500,\" >100\",IF(U78=\"Not applicable\",\"Not applicable\",0))))","v":"50 - 100"}]
["E003/079","Comply","Comply","Type 1","Comply","Fully compliant","Refrigerator","CFD-50","Electric Mains","China; People's Republic of","AUCMA C0. Ltd.","Hot ","R134a ","+43°C ","+43°C ","+10°C","Electric Mains 220-240V 50/60Hz","158.8 x 54.5 x 65.5 cm","Electric - compression","Electric Mains",50,68,135,0.76,0.77,"Not applicable","Not applicable","Not applicable","Not applicable","Not applicable","Not applicable","3 vaccine storage trays; 3 wire shelves; 2 sets of locks & keys; 1 funnel; documentation; voltage stabilizer included",null,null,null,"Compressor, 3000000353: $108 DC fan, 3000001115: $25",0.77,100,"EXW",2016,"units: 1,400USD 100 or more units: 1,300USD",null,"ISO 9001:2008 - ISO 14001 - OHSAS 18001 -","pre-qualified: 04 Nov 2016","CHEARI","May, 2017",{"$f":"IF(U79<30,\" <30\",IF(U79<60,\"30 - 60\",IF(U79<90,\"60 - 90\",IF(U79<120,\"90 - 120\",IF(U79<300,\" >120\",IF(U79=\"Not applicable\",\"Not applicable\",0))))))","v":"30 - 60"},{"$f":"IF(U79<50,\" <50\",IF(U79<100,\"50 - 100\",IF(U79<500,\" >100\",IF(U79=\"Not applicable\",\"Not applicable\",0))))","v":"50 - 100"},"Unit requires addition of 32 litres of clean drinking water during installation"]
["E003/080","Comply","Comply","Type 1","Comply","Fully compliant","Refrigerator","GVR 51 LITE AC","Electric Mains","India","Godrej & Boyce","Hot ","R600a","+43°C ","+43°C ","+10°C","Electric Mains 220-240V 50/60Hz","62cm x 73.5cm x 151.5cm","Electric - compression","Electric Mains",51,69,55,2.04,2.38,"Not applicable","Not applicable","Not applicable","Not applicable","Not applicable","Not applicable","Included in price: 4 wire shelves ; 1 Padlock; 1 Funnel Optional (charged extra): Extra wire shelves, plywood packaging, Voltage Stabilizer\"",null,null,null,"Compressor Fan Motor Electronic Controller Card Fan Impeller Voltage Stabilizer",1.3,160,"EXW",2016,"USD 1800 USD 1765 USD 1730","- ISO 9001:2008 -","CE-JOB-DEL-16-000501- GVR 225AC","pre-qualified: 21 Nov 2016","Intertek India","May, 2017",{"$f":"IF(U80<30,\" <30\",IF(U80<60,\"30 - 60\",IF(U80<90,\"60 - 90\",IF(U80<120,\"90 - 120\",IF(U80<300,\" >120\",IF(U80=\"Not applicable\",\"Not applicable\",0))))))","v":"30 - 60"},{"$f":"IF(U80<50,\" <50\",IF(U80<100,\"50 - 100\",IF(U80<500,\" >100\",IF(U80=\"Not applicable\",\"Not applicable\",0))))","v":"50 - 100"},"(i) Sure Chill is a patented technology licensed by The Sure Chill Company (UK) guarantees never\r\nto freeze vaccines\r\n(ii) Data loggers records up to 30 days temperature reading with 5 customizable temperature alarm\r\nsettings\r\n(iii) Has a built in intelligent temperature control, early warning and energy management system\r\n(iv) Unit requires addition of clean drinking water during installation,"]
["E003/081","Comply","Comply","Type 1","Comply","Fully compliant","Refrigerator","GVR 75 Lite","Electric Mains","India","Godrej & Boyce","Hot ","R600a","+43°C ","+43°C ","+10°C","Electric Mains 220-240V 50/60Hz","151.5cm x 62cm x 73.5cm","Electric - compression","Electric Mains",72.5,99,81,1.47,2.77,"Not applicable","Not applicable","Not applicable","Not applicable","Not applicable","Not applicable","\"Included in price: 4 wire shelves ; 1 Padlock; 1 Funnel Optional (charged extra): Extra wire shelves, plywood packaging, Voltage Stabilizer\"",null,null,null,"Compressor Electronic Controller Card Voltage Stabilizer",0.86,115,null,2016,"Price 1 (1-10 Units) - USD 972 Price 2 (10-99 Units) - USD 950 Price 3 (100+ Units) - USD 935","ISO 9001:2008 -","CE-JOB-DEL-16-000501- GVR 75 Lite","pre-qualified: 21 Nov 2016","Intertek India","May, 2017","60 - 90","50 - 100","(i) Sure Chill is a patented technology licensed by The Sure Chill Company (UK) guarantees never\r\nto freeze vaccines\r\n(ii) Data loggers records up to 30 days temperature reading with 5 customizable temperature alarm\r\nsettings\r\n(iii) Has a built in intelligent temperature control, early warning and energy management system\r\n(iv) Unit requires addition of clean drinking water during installation,"]
["E003/082","Comply","Comply","Type 1","Comply","Fully compliant","Refrigerator","GVR 99 Lite","Electric Mains","India","Godrej & Boyce","Hot ","R600a","+43°C ","+43°C ","+10°C","Electric Mains 220-240V 50/60Hz","62.0 X 73.5 X 170.0 cm","Electric - compression","Electric Mains",98.5,124,"59 Hrs 34 minutes",1.23,1.73,"Not applicable","Not applicable","Not applicable","Not applicable","Not applicable","Not applicable","\"Included in price: 4 wire shelves ; 1 Padlock; 1 Funnel Optional (charged extra): Extra wire shelves, plywood packaging, Voltage Stabilizer\"",null,null,null,"Compressor Electronic Controller Card Voltage Stabilizer",0.95,125,null,2016,"Price 1 (1-10 Units) - USD 1050, Price 2 (10-99 Units) - USD 1030, Price 3 (100+ Units) - USD 1010","ISO 9001:2008 -","CE-JOB-DEL-16-000501- GVR 99 Lite","pre-qualified: 21 Nov 2016","Intertek India","May, 2017","90 - 120","50 - 100","\"(i) Sure Chill is a patented technology licensed by The Sure Chill Company (UK) guarantees never\nto freeze vaccines\n(ii) Data loggers records up-to 30 days temperature reading with 5 customizable temperature alarm\nsettings\n(iii) Has a built in intelligent temperature control, early warning and energy management system\n(iv) Unit requires addition of clean drinking water during installation,\""]
["E003/083","Comply","Comply","Type 1","Comply","Fully compliant","Refrigerator","GVR 225 AC","Electric Mains","India","Godrej & Boyce","Hot ","R600a","+43°C ","+43°C ","+10°C","Electric Mains 220-240V 50/60Hz","79.5 x 75.0 x 182.0 cm","Electric - compression","Electric Mains",225,278,55,2.04,2.38,"Not applicable","Not applicable","Not applicable","Not applicable","Not applicable","Not applicable","\"Included in price: 4 wire shelves ; 1 Padlock; 1 Funnel Optional (charged extra): Extra wire shelves, plywood packaging, Voltage Stabilizer",null,null,null,"Compressor , Fan Motor , Electronic Controller Card , Fan Impeller , Voltage Stabilizer",1.3,160,"EXW",2016,"Price 1 (1-10 Units) - USD 1800, Price 2 (10-99 Units) - USD , 1765 , Price 3 (100+ Units) - USD 1730","ISO 9001:2008 -",null,"pre-qualified: 21 Nov 2016","Intertek India","May, 2017"," >120"," >100","(i) Sure Chill is a patented technology licensed by The Sure Chill Company (UK)\r \n(ii) Refrigerator operates on only 2.5 hrs/day power at 􀀀􀀀􀀀C ambient, post stabilization\r\n(iii) Has a built in intelligent temperature control, early warning and energy management system\r\n(iv) Unit requires addition of clean drinking water during installation, contact manufacturer for\r\ninformation"]
["E003/084","Comply","Comply","Data not available","Not Applicable","Fully compliant","Combined ref.and fr.","VC60SDD-1","SDD","United Kingdom","Dulas Solar","Hot ","R600a","+43°C ","+43°C "," +5°C","Solar direct drive","95.9cm x 128.2cm x 74.0cm","Electric - compression","SDD",57,124,"Not applicable","Not indicated","Not indicated","82 hrs 48 mins",3.5,24,"2.4 kg or 4x0.6 L packs","13.8 kg or 23x0.6 L Packs","Not indicated","Handle with in-built lock; External temperature display; Instruction manual; Stacking baskets; replacable lid gaskets","Danfoss","BD35K","-","Compressor Danfoss BD35K: €178.00 - Controller Danfoss Compressor Danfoss BD35K: €178.00 - controller\nDanfoss 101N0410: €140.00\nSDD controller: €191.00 - Temperature probe: €12.70 (per pair)\nMCB fridge / isolation switch: €19.05 - MCB freezer (isolation switch): €12.69\nSolar thermometer: €38.10 - Freezer foam lid: €38.10 - Freezer fan: €24.00",1.2,170,"FCA",2016,"From €4750 per complete system"," ISO 9001:2008","300-KLAB-16-164","pre-qualified: 16 Jan 2017","Danish Technological Institute","May, 2017",{"$f":"IF(U84<30,\" <30\",IF(U84<60,\"30 - 60\",IF(U84<90,\"60 - 90\",IF(U84<120,\"90 - 120\",IF(U84<300,\" >120\",IF(U84=\"Not applicable\",\"Not applicable\",0))))))","v":"30 - 60"},{"$f":"IF(U84<50,\" <50\",IF(U84<100,\"50 - 100\",IF(U84<500,\" >100\",IF(U84=\"Not applicable\",\"Not applicable\",0))))","v":"50 - 100"},"Incorporates Freeze Free technology. Price includes plug and play roof mounted adjustable 600Wp solar array."]

{"sheet":"PQS dashboard","index":1,"n_rows":102,"n_cols":19,"rows_kept":102,"cut":false,"hidden":false,"merged":[[33,6,37,6],[1,1,1,16],[13,1,13,11],[3,3,3,16],[3,1,3,2]]}
[]
[null,"UNICEF- SD COLD CHAIN EQUIPMENT SELECTION TOOL - FOR  REFRIGERATORS AND FREEZERS"]
[]
[null,"RESET ALL",null,"PLEASE USE THE BELOW DASHBOARD TO SELECT THE DESIRED PARAMETER"]
[]
[]
[]
[]
[]
[]
[]
[]
[]
[]
[]
[]
[]
[]
[]
[]
[]
[null,null,null,null,null,null,null,null,null,null,null,"TABLE 3:- AVAILABLE PQS PRODUCTS AS PER THE SELECTION"]
[null,null,null,null,null,null,null,null,null,null,null,"PQS code:","Type of applicance","Model ","Vaccine storage capacity:(Litres)","Energy consumption, stable running (kWh/24 hours):","Holdover time (hours): ","Volume category (UNICEF)","Volume category ( CCEOP)"]
[null,null,null,null,null,null,null,null,null,null,null,"E003/001","Combined ref.and fr.","TCW2000DC",76,0.57999999999999996,"13 hours 35 mn ","60 - 90","50 - 100"]
[null,null,"TABLE 2:- AVAILABLE PQS PRODUCTS AS PER THE SELECTION",null,null,null,null,null,null,null,null,"E003/002","Freezer"," HBD 116","Not applicable",0.38,"2 hours 29 mn","Not applicable","Not applicable"]
[null,null,"Total #",{"$f":"COUNTA(N24:N200)","v":79},"# <30 Litre",{"$f":"COUNTIF($R$24:$R$200,\" <30\")","v":11},"# <50 Litre",{"$f":"COUNTIFS($S$24:$S$200,\" <50\")","v":19},null,null,null,"E003/003","Freezer"," HBD 286","Not applicable",4.3600000000000003,"4 hours 9 mn","Not applicable","Not applicable"]
[null,null,"Energy consumption Min",{"$f":"MIN($P$24:$P$200)","v":0.38},"# 30 - 60 Litre",{"$f":"COUNTIF($R$24:$R$200,\"30 - 60\")","v":17},"# 50 - 100 Litre",{"$f":"COUNTIF($S$24:$S$200,\"50 - 100\")","v":30},null,null,null,"E003/004","Freezer","TFW 800","Not applicable",3.35,"Nor indicated","Not applicable","Not applicable"]
[null,null,"Energy consumption Max",{"$f":"MAX($P$24:$P$200)","v":4.3600000000000003},"# 60 - 90 Litre",{"$f":"COUNTIF($R$24:$R$200,\"60 - 90\")","v":10},"#>100 Litre",{"$f":"COUNTIFS($S$24:$S$200,\" >100\")","v":22},null,null,null,"E003/005","Refrigerator","HBC 70",45,0.64,"27 hours 18 mn","30 - 60"," <50"]
[null,null,"Vaccine volume Min",{"$f":"MIN($O$24:$O$200)","v":15},"# 90 - 120 Litre",{"$f":"COUNTIF($R$24:$R$200,\"90 - 120\")","v":16},null,null,null,null,null,"E003/006","Refrigerator","HBC 200",90,1.34,"31 hours 23 mn","90 - 120","50 - 100"]
[null,null,"Vaccine Volume Max",{"$f":"MAX(O24:O200)","v":240},"# >120 Litre",{"$f":"COUNTIF($R$24:$R$200,\" >120\")","v":17},null,null,null,null,null,"E003/007","Refrigerator","MK 304",105,3.2,"25 hours 66 mn","90 - 120"," >100"]
[null,null,null,null,null,null,null,null,null,null,null,"E003/008","Two-mode ref.OR fr.","TCW3000 DC",109.5,1.01,"23.4 hours","90 - 120"," >100"]
[null,null,"TABLE 1:- AVAILABLE PQS PRODUCTS AS PER THE SELECTION",null,null,null,null,null,null,null,null,"E003/009","Refrigerator","MKS 044",19.5,"Not indicated","Not applicable"," <30"," <50"]
[null,null,null,"Refrigerator","Combined ref.and fr.","Two-mode ref.OR fr.","Freezer",null,null,null,null,"E003/010","Combined ref.and fr.","MKF 074",16,3.46,"52 hours 54 mn"," <30"," <50"]
[null,null,"# <30 Litre",{"$f":"COUNTIFS($M$24:$M$200,D33,$R$24:$R$200,\" <30\")","v":9},{"$f":"COUNTIFS($M$24:$M$200,E33,$R$24:$R$200,\" <30\")","v":2},{"$f":"COUNTIFS($M$24:$M$200,F33,$R$24:$R$200,\" <30\")","v":0},{"$f":"COUNTIF(M24:M200,G33)","v":10},null,null,null,null,"E003/011","Refrigerator","MK 204",75,1.89,"20.1 hours","60 - 90","50 - 100"]
[null,null,"# 30 - 60 Litre",{"$f":"COUNTIFS($M$24:$M$200,D33,$R$24:$R$200,\"30 - 60\")","v":12},{"$f":"COUNTIFS($M$24:$M$200,E33,$R$24:$R$200,\"30 - 60\")","v":5},{"$f":"COUNTIFS($M$24:$M$200,F33,$R$24:$R$200,\"30 - 60\")","v":0},null,null,null,null,null,"E003/012","Refrigerator","MK 404",135,3.08,"23.23 hours"," >120"," >100"]
[null,null,"# 60 - 90 Litre",{"$f":"COUNTIFS($M$24:$M$200,D33,$R$24:$R$200,\"60 - 90\")","v":5},{"$f":"COUNTIFS($M$24:$M$200,E33,$R$24:$R$200,\"60 - 90\")","v":4},{"$f":"COUNTIFS($M$24:$M$200,F33,$R$24:$R$200,\"60 - 90\")","v":1},null,null,null,null,null,"E003/014","Combined ref.and fr.","TCW2000 AC",60,1.87,"39.4 hours","60 - 90","50 - 100"]
[null,null,"# 90 - 120 Litre",{"$f":"COUNTIFS($M$24:$M$200,D33,$R$24:$R$200,\"90 - 120\")","v":11},{"$f":"COUNTIFS($M$24:$M$200,E33,$R$24:$R$200,\"90 - 120\")","v":3},{"$f":"COUNTIFS($M$24:$M$200,F33,$R$24:$R$200,\"90 - 120\")","v":1},null,null,null,null,null,"E003/017","Two-mode ref.OR fr.","TCW3000 AC",150,"1.37, 3.83","53 hours 10 min; 3 hours 55 min"," >120"," >100"]
[null,null,"# >120 Litre",{"$f":"COUNTIFS($M$24:$M$200,D33,$R$24:$R$200,\" >120\")","v":15},{"$f":"COUNTIFS($M$24:$M$200,E33,$R$24:$R$200,\" >120\")","v":0},{"$f":"COUNTIFS($M$24:$M$200,F33,$R$24:$R$200,\" >120\")","v":1},null,null,null,null,null,"E003/020","Refrigerator","BFRV55",54.5,"Not indicated","Not applicable","30 - 60","50 - 100"]
[null,null,null,null,null,null,null,null,null,null,null,"E003/021","Refrigerator","VLS 400",216,0.82,"30 hours"," >120"," >100"]
[null,null,null,null,null,null,null,null,null,null,null,"E003/022","Refrigerator","MK 144",48,2.2999999999999998,"43 hours 8 min","30 - 60"," <50"]
[null,null,null,null,null,null,null,null,null,null,null,"E003/023","Freezer","MF 314","Not applicable",4.2300000000000004,"4.0 hours","Not applicable","Not applicable"]
[null,null,null,null,null,null,null,null,null,null,null,"E003/024","Freezer","MF 114","Not applicable",2.2400000000000002,"2.8 hrs","Not applicable","Not applicable"]
[null,null,null,null,null,null,null,null,null,null,null,"E003/025","Freezer","MF 214","Not applicable",3,"2.9 hours","Not applicable","Not applicable"]
[null,null,null,null,null,null,null,null,null,null,null,"E003/026","Combined ref.and fr.","VC 65-2",37.5,0.55000000000000004,"3 hours 8 min","30 - 60"," <50"]
[null,null,null,null,null,null,null,null,null,null,null,"E003/027","Combined ref.and fr.","VC 150-2",86,0.68,"3 hours 22 min","60 - 90","50 - 100"]
[null,null,null,null,null,null,null,null,null,null,null,"E003/028","Refrigerator","VC 200-1",126.5,0.63,"3 hours 3 min"," >120"," >100"]
[null,null,null,null,null,null,null,null,null,null,null,"E003/029","Refrigerator","HTC-60",21,"Not indicated","Not applicable"," <30"," <50"]
[null,null,null,null,null,null,null,null,null,null,null,"E003/030","Refrigerator","TCW3000 SDD",156,"Not indicated","Not applicable"," >120"," >100"]
[null,null,null,null,null,null,null,null,null,null,null,"E003/031","Two-mode ref.OR fr.","VLS 200 Green line",60,0.71,"24.4 hours","60 - 90","50 - 100"]
[null,null,null,null,null,null,null,null,null,null,null,"E003/032","Refrigerator","VLS 300",98,0.66,"23.5 hours","90 - 120","50 - 100"]
[null,null,null,null,null,null,null,null,null,null,null,"E003/033","Refrigerator","VLS 350",127,0.61,"31.5 hours"," >120"," >100"]
[null,null,null,null,null,null,null,null,null,null,null,"E003/034","Refrigerator","HBC-110",52.5,1.2,"36 hours 17 min","30 - 60","50 - 100"]
[null,null,null,null,null,null,null,null,null,null,null,"E003/035","Combined ref.and fr.","TCW2000 SDD",99,"Not indicated","Not applicable","90 - 120","50 - 100"]
[null,null,null,null,null,null,null,null,null,null,null,"E003/036","Refrigerator","ZLF 100AC",99,"1.96 kWh/24h","113.7 hours","90 - 120","50 - 100"]
[null,null,null,null,null,null,null,null,null,null,null,"E003/037","Refrigerator","ZLF100DC",99,"Not indicated","Not applicable","90 - 120","50 - 100"]
[null,null,null,null,null,null,null,null,null,null,null,"E003/038","Refrigerator","HBC-340",211,"2.06kWh/24h","53 hrs"," >120"," >100"]
[null,null,null,null,null,null,null,null,null,null,null,"E003/039","Refrigerator","BFRV15",15,"Not indicated","Not applicable"," <30"," <50"]
[null,null,null,null,null,null,null,null,null,null,null,"E003/040","Refrigerator","VC200SDD",132,"Not indicated","Not applicable"," >120"," >100"]
[null,null,null,null,null,null,null,null,null,null,null,"E003/041","Refrigerator","VLS 054 SDD",55.5,"Not indicated","Not applicable","30 - 60","50 - 100"]
[null,null,null,null,null,null,null,null,null,null,null,"E003/042","Combined ref.and fr.","TCW40SDD",36,"Not indicated","Not applicable","30 - 60"," <50"]
[null,null,null,null,null,null,null,null,null,null,null,"E003/043","Combined ref.and fr.","TCW 2043 SDD",70,"Not indicated","Not applicable","60 - 90","50 - 100"]
[null,null,null,null,null,null,null,null,null,null,null,"E003/044","Refrigerator","ZLF150AC",128,1.98,128.19999999999999," >120"," >100"]
[null,null,null,null,null,null,null,null,null,null,null,"E003/045","Refrigerator","TCW3043SDD",89,"Not indicated","Not applicable","60 - 90","50 - 100"]
[null,null,null,null,null,null,null,null,null,null,null,"E003/046","Refrigerator","GVR 50 AC",46.5,0.56000000000000005,182,"30 - 60"," <50"]
[null,null,null,null,null,null,null,null,null,null,null,"E003/047","Refrigerator","GVR 100 AC",99,0.75,300.3,"90 - 120","50 - 100"]
[null,null,null,null,null,null,null,null,null,null,null,"E003/048","Combined ref.and fr.","VC 150SDD",102,"Not indicated","Not applicable","90 - 120"," >100"]
[null,null,null,null,null,null,null,null,null,null,null,"E003/049","Refrigerator","GVR50DC SDD",46.5,"Not indicated","Not applicable","30 - 60"," <50"]
[null,null,null,null,null,null,null,null,null,null,null,"E003/050","Refrigerator","GVR 100 DC",99,"Not indicated","Not applicable","90 - 120","50 - 100"]
[null,null,null,null,null,null,null,null,null,null,null,"E003/051","Refrigerator","ZLF30AC",27,1.6819999999999999,77.2," <30"," <50"]
[null,null,null,null,null,null,null,null,null,null,null,"E003/052","Refrigerator","ZLF150DC",128,"Not indicated","Not applicable"," >120"," >100"]
[null,null,null,null,null,null,null,null,null,null,null,"E003/053","Refrigerator","VLS094 SDD",92,"Not indicated","Not applicable","90 - 120","50 - 100"]
[null,null,null,null,null,null,null,null,null,null,null,"E003/054","Refrigerator","VLS154 SDD",170,"Not indicated","Not applicable"," >120"," >100"]
[null,null,null,null,null,null,null,null,null,null,null,"E003/055","Refrigerator","ZLF30DC SDD",27,"Not indicated","Not applicable"," <30"," <50"]
[null,null,null,null,null,null,null,null,null,null,null,"E003/056","Refrigerator","HTC-60H",21,0.77600000000000002,"109 hours 21 min"," <30"," <50"]
[null,null,null,null,null,null,null,null,null,null,null,"E003/057","Combined ref.and fr.","HTCD-160",100,"Not indicated","Not applicable","90 - 120"," >100"]
[null,null,null,null,null,null,null,null,null,null,null,"E003/058","Refrigerator","VC200-110 SDD",110,"Not indicated","Not applicable","90 - 120"," >100"]
[null,null,null,null,null,null,null,null,null,null,null,"E003/059","Refrigerator","VC200-88 SDD",88,"Not indicated","Not applicable","60 - 90","50 - 100"]
[null,null,null,null,null,null,null,null,null,null,null,"E003/060","Freezer","DW-25W147",96,3.31,"6hr 44mins","90 - 120","50 - 100"]
[null,null,null,null,null,null,null,null,null,null,null,"E003/061","Freezer","DW-25W300",240,3.37,"58hr 36Mins"," >120"," >100"]
[null,null,null,null,null,null,null,null,null,null,null,"E003/062","Refrigerator","VLS 200A",60,0.56999999999999995,54,"60 - 90","50 - 100"]
[null,null,null,null,null,null,null,null,null,null,null,"E003/063","Refrigerator","VLS 300A",98,0.6,"55.5 hours","90 - 120","50 - 100"]
[null,null,null,null,null,null,null,null,null,null,null,"E003/064","Refrigerator","VLS 350A",127,0.62,"54.7 hours"," >120"," >100"]
[null,null,null,null,null,null,null,null,null,null,null,"E003/065","Refrigerator","VLS 400A ",145,0.67,"55 hours"," >120"," >100"]
[null,null,null,null,null,null,null,null,null,null,null,"E003/066","Refrigerator","TCW 4000 AC",240,0.85,"77.3 hours"," >120"," >100"]
[null,null,null,null,null,null,null,null,null,null,null,"E003/067","Refrigerator","TCW 15R SDD",16,"Not indicated","Not applicable"," <30"," <50"]
[null,null,null,null,null,null,null,null,null,null,null,"E003/068","Refrigerator","TCW 40R SDD",36,"Not indicated","Not applicable","30 - 60"," <50"]
[null,null,null,null,null,null,null,null,null,null,null,"E003/069","Refrigerator","VLS 024 SDD",25.5,"Not indicated","Not applicable"," <30"," <50"]
[null,null,null,null,null,null,null,null,null,null,null,"E003/070","Combined ref.and fr.","VLS 064 RF",52.5,1.5,20.2,"30 - 60","50 - 100"]
[null,null,null,null,null,null,null,null,null,null,null,"E003/071","Freezer","TFW 3000 AC","Not applicable",2.15,"Not applicable","Not applicable","Not applicable"]
[null,null,null,null,null,null,null,null,null,null,null,"E003/072","Refrigerator","VC 225 ILR",203.2,0.80300000000000005,94," >120"," >100"]
[null,null,null,null,null,null,null,null,null,null,null,"E003/073","Freezer","TFW 40 SDD","Not applicable","Not indicated","Not applicable","Not applicable","Not applicable"]
[null,null,null,null,null,null,null,null,null,null,null,"E003/074","Combined ref.and fr.","HTCD 90 SDD",37.5,"Not indicated","Not applicable","30 - 60"," <50"]
[null,null,null,null,null,null,null,null,null,null,null,"E003/075","Refrigerator","HTC 40 SDD",22.5,"Not indicated","Not applicable"," <30"," <50"]
[null,null,null,null,null,null,null,null,null,null,null,"E003/076","Refrigerator","HTC 110 SDD",59,"Not indicated","Not applicable","30 - 60","50 - 100"]
[null,null,null,null,null,null,null,null,null,null,null,"E003/077","Combined ref.and fr.","TCW 15 SDD",16,"Not indicated","Not applicable"," <30"," <50"]
[null,null,null,null,null,null,null,null,null,null,null,"E003/078","Refrigerator","VC50SDD",52.5,"Not indicated","Not applicable","30 - 60","50 - 100"]
[null,null,null,null,null,null,null,null,null,null,null,"E003/079","Refrigerator","CFD-50",50,0.76,135,"30 - 60","50 - 100"]
[null,null,null,null,null,null,null,null,null,null,null,"E003/080","Refrigerator","GVR 51 LITE AC",51,2.04,55,"30 - 60","50 - 100"]
[null,null,null,null,null,null,null,null,null,null,null,"E003/081","Refrigerator","GVR 75 Lite",72.5,1.47,81,"60 - 90","50 - 100"]
[null,null,null,null,null,null,null,null,null,null,null,"E003/082","Refrigerator","GVR 99 Lite",98.5,1.23,"59 Hrs 34 minutes","90 - 120","50 - 100"]
[null,null,null,null,null,null,null,null,null,null,null,"E003/083","Refrigerator","GVR 225 AC",225,2.04,55," >120"," >100"]
[null,null,null,null,null,null,null,null,null,null,null,"E003/084","Combined ref.and fr.","VC60SDD-1",57,"Not indicated","Not applicable","30 - 60","50 - 100"]

{"sheet":"PRODUCT SPECIFIC DETIAL","index":2,"n_rows":55,"n_cols":9,"rows_kept":55,"cut":false,"hidden":false,"merged":[[1,1,1,8]]}
[]
[null,"COLD CHAIN EQUIPMENT PRODUCT DETAIL AND COMPARISON TABLE"]
[]
[null,null,null,null,null,"COMPAIRE WITH","COMPAIRE WITH","COMPAIRE WITH","COMPAIRE WITH"]
[null,null,null,"PLEASE SELECT PQS CODE HERE"]
[null,null,null,null,"Column1","Column2","Column3","Column4","Column5"]
[null,{"$f":"IF($E$5=\"\",\"\",1)","v":""},{"$f":"IF(E5=\"\",\"\",\"CCEOP RELATED\")","v":""},{"$f":"IF($E$5=\"\",\"\",PQS_datab[[#Headers],[PQS code:]])","v":""},{"$f":"IF($E$5=\"\",\"\",VLOOKUP($E$5,PQS_datab[#All],B7))","v":""},{"$f":"IF(OR(B7=\"\",$F$5=\"\"),\"\",VLOOKUP($F$5,PQS_datab[#All],B7))","v":""},{"$f":"IF(OR(B7=\"\",$G$5=\"\"),\"\",VLOOKUP($G$5,PQS_datab[#All],B7))","v":""},{"$f":"IF(OR(B7=\"\",$H$5=\"\"),\"\",VLOOKUP($H$5,PQS_datab[#All],B7))","v":""},{"$f":"IF(OR(B7=\"\",$I$5=\"\"),\"\",VLOOKUP($I$5,PQS_datab[#All],B7))","v":""}]
[null,{"$f":"IF($E$5=\"\",\"\",B7+1)","v":""},null,{"$f":"IF($E$5=\"\",\"\",PQS_datab[[#Headers],[PQS tested for FP_GRADE_A ]])","v":""},{"$f":"IF($E$5=\"\",\"\",VLOOKUP($E$5,PQS_datab[#All],B8))","v":""},{"$f":"IF(OR(B8=\"\",$F$5=\"\"),\"\",VLOOKUP($F$5,PQS_datab[#All],B8))","v":""},{"$f":"IF(OR(B8=\"\",$G$5=\"\"),\"\",VLOOKUP($G$5,PQS_datab[#All],B8))","v":""},{"$f":"IF(OR(B8=\"\",$H$5=\"\"),\"\",VLOOKUP($H$5,PQS_datab[#All],B8))","v":""},{"$f":"IF(OR(B8=\"\",$I$5=\"\"),\"\",VLOOKUP($I$5,PQS_datab[#All],B8))","v":""}]
[null,{"$f":"IF($E$5=\"\",\"\",B8+1)","v":""},null,{"$f":"IF($E$5=\"\",\"\",PQS_datab[[#Headers],[Platform Extended operating temperature]])","v":""},{"$f":"IF($E$5=\"\",\"\",VLOOKUP($E$5,PQS_datab[#All],B9))","v":""},{"$f":"IF(OR(B9=\"\",$F$5=\"\"),\"\",VLOOKUP($F$5,PQS_datab[#All],B9))","v":""},{"$f":"IF(OR(B9=\"\",$G$5=\"\"),\"\",VLOOKUP($G$5,PQS_datab[#All],B9))","v":""},{"$f":"IF(OR(B9=\"\",$H$5=\"\"),\"\",VLOOKUP($H$5,PQS_datab[#All],B9))","v":""},{"$f":"IF(OR(B9=\"\",$I$5=\"\"),\"\",VLOOKUP($I$5,PQS_datab[#All],B9))","v":""}]
[null,{"$f":"IF($E$5=\"\",\"\",B9+1)","v":""},null,{"$f":"IF($E$5=\"\",\"\",PQS_datab[[#Headers],[Temp. Monitoring / Logging ( Type 1,2,3)]])","v":""},{"$f":"IF($E$5=\"\",\"\",VLOOKUP($E$5,PQS_datab[#All],B10))","v":""},{"$f":"IF(OR(B10=\"\",$F$5=\"\"),\"\",VLOOKUP($F$5,PQS_datab[#All],B10))","v":""},{"$f":"IF(OR(B10=\"\",$G$5=\"\"),\"\",VLOOKUP($G$5,PQS_datab[#All],B10))","v":""},{"$f":"IF(OR(B10=\"\",$H$5=\"\"),\"\",VLOOKUP($H$5,PQS_datab[#All],B10))","v":""},{"$f":"IF(OR(B10=\"\",$I$5=\"\"),\"\",VLOOKUP($I$5,PQS_datab[#All],B10))","v":""}]
[null,"",null,{"$f":"IF($E$5=\"\",\"\",PQS_datab[[#Headers],[Voltage Regulation (CCEOP)]])","v":""},{"$f":"IF($E$5=\"\",\"\",VLOOKUP($E$5,PQS_datab[#All],B11))","v":""},{"$f":"IF(OR(B11=\"\",$F$5=\"\"),\"\",VLOOKUP($F$5,PQS_datab[#All],B11))","v":""},{"$f":"IF(OR(B11=\"\",$G$5=\"\"),\"\",VLOOKUP($G$5,PQS_datab[#All],B11))","v":""},{"$f":"IF(OR(B11=\"\",$H$5=\"\"),\"\",VLOOKUP($H$5,PQS_datab[#All],B11))","v":""},{"$f":"IF(OR(B11=\"\",$I$5=\"\"),\"\",VLOOKUP($I$5,PQS_datab[#All],B11))","v":""}]
[null,"",null,{"$f":"IF($E$5=\"\",\"\",PQS_datab[[#Headers],[Full CCEOP Complaint  ( Y/N)]])","v":""},{"$f":"IF($E$5=\"\",\"\",VLOOKUP($E$5,PQS_datab[#All],B12))","v":""},{"$f":"IF(OR(B12=\"\",$F$5=\"\"),\"\",VLOOKUP($F$5,PQS_datab[#All],B12))","v":""},{"$f":"IF(OR(B12=\"\",$G$5=\"\"),\"\",VLOOKUP($G$5,PQS_datab[#All],B12))","v":""},{"$f":"IF(OR(B12=\"\",$H$5=\"\"),\"\",VLOOKUP($H$5,PQS_datab[#All],B12))","v":""},{"$f":"IF(OR(B12=\"\",$I$5=\"\"),\"\",VLOOKUP($I$5,PQS_datab[#All],B12))","v":""}]
[null,"",{"$f":"IF(E5=\"\",\"\", \"SUPPLIER RELATED\")","v":""},{"$f":"IF($E$5=\"\",\"\",PQS_datab[[#Headers],[Type of applicance]])","v":""},{"$f":"IF($E$5=\"\",\"\",VLOOKUP($E$5,PQS_datab[#All],B13))","v":""},{"$f":"IF(OR(B13=\"\",$F$5=\"\"),\"\",VLOOKUP($F$5,PQS_datab[#All],B13))","v":""},{"$f":"IF(OR(B13=\"\",$G$5=\"\"),\"\",VLOOKUP($G$5,PQS_datab[#All],B13))","v":""},{"$f":"IF(OR(B13=\"\",$H$5=\"\"),\"\",VLOOKUP($H$5,PQS_datab[#All],B13))","v":""},{"$f":"IF(OR(B13=\"\",$I$5=\"\"),\"\",VLOOKUP($I$5,PQS_datab[#All],B13))","v":""}]
[null,"",null,{"$f":"IF($E$5=\"\",\"\",PQS_datab[[#Headers],[Model ]])","v":""},{"$f":"IF($E$5=\"\",\"\",VLOOKUP($E$5,PQS_datab[#All],B14))","v":""},{"$f":"IF(OR(B14=\"\",$F$5=\"\"),\"\",VLOOKUP($F$5,PQS_datab[#All],B14))","v":""},{"$f":"IF(OR(B14=\"\",$G$5=\"\"),\"\",VLOOKUP($G$5,PQS_datab[#All],B14))","v":""},{"$f":"IF(OR(B14=\"\",$H$5=\"\"),\"\",VLOOKUP($H$5,PQS_datab[#All],B14))","v":""},{"$f":"IF(OR(B14=\"\",$I$5=\"\"),\"\",VLOOKUP($I$5,PQS_datab[#All],B14))","v":""}]
[null,"",null,{"$f":"IF($E$5=\"\",\"\",PQS_datab[[#Headers],[Energy source (Category)]])","v":""},{"$f":"IF($E$5=\"\",\"\",VLOOKUP($E$5,PQS_datab[#All],B15))","v":""},{"$f":"IF(OR(B15=\"\",$F$5=\"\"),\"\",VLOOKUP($F$5,PQS_datab[#All],B15))","v":""},{"$f":"IF(OR(B15=\"\",$G$5=\"\"),\"\",VLOOKUP($G$5,PQS_datab[#All],B15))","v":""},{"$f":"IF(OR(B15=\"\",$H$5=\"\"),\"\",VLOOKUP($H$5,PQS_datab[#All],B15))","v":""},{"$f":"IF(OR(B15=\"\",$I$5=\"\"),\"\",VLOOKUP($I$5,PQS_datab[#All],B15))","v":""}]
[null,"",null,{"$f":"IF($E$5=\"\",\"\",PQS_datab[[#Headers],[Manufactured in:]])","v":""},{"$f":"IF($E$5=\"\",\"\",VLOOKUP($E$5,PQS_datab[#All],B16))","v":""},{"$f":"IF(OR(B16=\"\",$F$5=\"\"),\"\",VLOOKUP($F$5,PQS_datab[#All],B16))","v":""},{"$f":"IF(OR(B16=\"\",$G$5=\"\"),\"\",VLOOKUP($G$5,PQS_datab[#All],B16))","v":""},{"$f":"IF(OR(B16=\"\",$H$5=\"\"),\"\",VLOOKUP($H$5,PQS_datab[#All],B16))","v":""},{"$f":"IF(OR(B16=\"\",$I$5=\"\"),\"\",VLOOKUP($I$5,PQS_datab[#All],B16))","v":""}]
[null,"",null,{"$f":"IF($E$5=\"\",\"\",PQS_datab[[#Headers],[Name of supplier]])","v":""},{"$f":"IF($E$5=\"\",\"\",VLOOKUP($E$5,PQS_datab[#All],B17))","v":""},{"$f":"IF(OR(B17=\"\",$F$5=\"\"),\"\",VLOOKUP($F$5,PQS_datab[#All],B17))","v":""},{"$f":"IF(OR(B17=\"\",$G$5=\"\"),\"\",VLOOKUP($G$5,PQS_datab[#All],B17))","v":""},{"$f":"IF(OR(B17=\"\",$H$5=\"\"),\"\",VLOOKUP($H$5,PQS_datab[#All],B17))","v":""},{"$f":"IF(OR(B17=\"\",$I$5=\"\"),\"\",VLOOKUP($I$5,PQS_datab[#All],B17))","v":""}]
[null,"",{"$f":"IF(E5=\"\",\"\",\"PRODUCT SPECIFICATION\")","v":""},{"$f":"IF($E$5=\"\",\"\",PQS_datab[[#Headers],[Climate zone: ]])","v":""},{"$f":"IF($E$5=\"\",\"\",VLOOKUP($E$5,PQS_datab[#All],B18))","v":""},{"$f":"IF(OR(B18=\"\",$F$5=\"\"),\"\",VLOOKUP($F$5,PQS_datab[#All],B18))","v":""},{"$f":"IF(OR(B18=\"\",$G$5=\"\"),\"\",VLOOKUP($G$5,PQS_datab[#All],B18))","v":""},{"$f":"IF(OR(B18=\"\",$H$5=\"\"),\"\",VLOOKUP($H$5,PQS_datab[#All],B18))","v":""},{"$f":"IF(OR(B18=\"\",$I$5=\"\"),\"\",VLOOKUP($I$5,PQS_datab[#All],B18))","v":""}]
[null,"",null,{"$f":"IF($E$5=\"\",\"\",PQS_datab[[#Headers],[Refrigerant: ]])","v":""},{"$f":"IF($E$5=\"\",\"\",VLOOKUP($E$5,PQS_datab[#All],B19))","v":""},{"$f":"IF(OR(B19=\"\",$F$5=\"\"),\"\",VLOOKUP($F$5,PQS_datab[#All],B19))","v":""},{"$f":"IF(OR(B19=\"\",$G$5=\"\"),\"\",VLOOKUP($G$5,PQS_datab[#All],B19))","v":""},{"$f":"IF(OR(B19=\"\",$H$5=\"\"),\"\",VLOOKUP($H$5,PQS_datab[#All],B19))","v":""},{"$f":"IF(OR(B19=\"\",$I$5=\"\"),\"\",VLOOKUP($I$5,PQS_datab[#All],B19))","v":""}]
[null,"",null,{"$f":"IF($E$5=\"\",\"\",PQS_datab[[#Headers],[Appliance tested at: ]])","v":""},{"$f":"IF($E$5=\"\",\"\",VLOOKUP($E$5,PQS_datab[#All],B20))","v":""},{"$f":"IF(OR(B20=\"\",$F$5=\"\"),\"\",VLOOKUP($F$5,PQS_datab[#All],B20))","v":""},{"$f":"IF(OR(B20=\"\",$G$5=\"\"),\"\",VLOOKUP($G$5,PQS_datab[#All],B20))","v":""},{"$f":"IF(OR(B20=\"\",$H$5=\"\"),\"\",VLOOKUP($H$5,PQS_datab[#All],B20))","v":""},{"$f":"IF(OR(B20=\"\",$I$5=\"\"),\"\",VLOOKUP($I$5,PQS_datab[#All],B20))","v":""}]
[null,"",null,{"$f":"IF($E$5=\"\",\"\",PQS_datab[[#Headers],[Performance at: ]])","v":""},{"$f":"IF($E$5=\"\",\"\",VLOOKUP($E$5,PQS_datab[#All],B21))","v":""},{"$f":"IF(OR(B21=\"\",$F$5=\"\"),\"\",VLOOKUP($F$5,PQS_datab[#All],B21))","v":""},{"$f":"IF(OR(B21=\"\",$G$5=\"\"),\"\",VLOOKUP($G$5,PQS_datab[#All],B21))","v":""},{"$f":"IF(OR(B21=\"\",$H$5=\"\"),\"\",VLOOKUP($H$5,PQS_datab[#All],B21))","v":""},{"$f":"IF(OR(B21=\"\",$I$5=\"\"),\"\",VLOOKUP($I$5,PQS_datab[#All],B21))","v":""}]
[null,"",null,{"$f":"IF($E$5=\"\",\"\",PQS_datab[[#Headers],[Min rated ambient temp:]])","v":""},{"$f":"IF($E$5=\"\",\"\",VLOOKUP($E$5,PQS_datab[#All],B22))","v":""},{"$f":"IF(OR(B22=\"\",$F$5=\"\"),\"\",VLOOKUP($F$5,PQS_datab[#All],B22))","v":""},{"$f":"IF(OR(B22=\"\",$G$5=\"\"),\"\",VLOOKUP($G$5,PQS_datab[#All],B22))","v":""},{"$f":"IF(OR(B22=\"\",$H$5=\"\"),\"\",VLOOKUP($H$5,PQS_datab[#All],B22))","v":""},{"$f":"IF(OR(B22=\"\",$I$5=\"\"),\"\",VLOOKUP($I$5,PQS_datab[#All],B22))","v":""}]
[null,"",null,{"$f":"IF($E$5=\"\",\"\",PQS_datab[[#Headers],[Energy source: ]])","v":""},{"$f":"IF($E$5=\"\",\"\",VLOOKUP($E$5,PQS_datab[#All],B23))","v":""},{"$f":"IF(OR(B23=\"\",$F$5=\"\"),\"\",VLOOKUP($F$5,PQS_datab[#All],B23))","v":""},{"$f":"IF(OR(B23=\"\",$G$5=\"\"),\"\",VLOOKUP($G$5,PQS_datab[#All],B23))","v":""},{"$f":"IF(OR(B23=\"\",$H$5=\"\"),\"\",VLOOKUP($H$5,PQS_datab[#All],B23))","v":""},{"$f":"IF(OR(B23=\"\",$I$5=\"\"),\"\",VLOOKUP($I$5,PQS_datab[#All],B23))","v":""}]
[null,"",null,{"$f":"IF($E$5=\"\",\"\",PQS_datab[[#Headers],[ Ext dimensions (HxLxD) cm]])","v":""},{"$f":"IF($E$5=\"\",\"\",VLOOKUP($E$5,PQS_datab[#All],B24))","v":""},{"$f":"IF(OR(B24=\"\",$F$5=\"\"),\"\",VLOOKUP($F$5,PQS_datab[#All],B24))","v":""},{"$f":"IF(OR(B24=\"\",$G$5=\"\"),\"\",VLOOKUP($G$5,PQS_datab[#All],B24))","v":""},{"$f":"IF(OR(B24=\"\",$H$5=\"\"),\"\",VLOOKUP($H$5,PQS_datab[#All],B24))","v":""},{"$f":"IF(OR(B24=\"\",$I$5=\"\"),\"\",VLOOKUP($I$5,PQS_datab[#All],B24))","v":""}]
[null,"",null,{"$f":"IF($E$5=\"\",\"\",PQS_datab[[#Headers],[Fuel and cycle type:]])","v":""},{"$f":"IF($E$5=\"\",\"\",VLOOKUP($E$5,PQS_datab[#All],B25))","v":""},{"$f":"IF(OR(B25=\"\",$F$5=\"\"),\"\",VLOOKUP($F$5,PQS_datab[#All],B25))","v":""},{"$f":"IF(OR(B25=\"\",$G$5=\"\"),\"\",VLOOKUP($G$5,PQS_datab[#All],B25))","v":""},{"$f":"IF(OR(B25=\"\",$H$5=\"\"),\"\",VLOOKUP($H$5,PQS_datab[#All],B25))","v":""},{"$f":"IF(OR(B25=\"\",$I$5=\"\"),\"\",VLOOKUP($I$5,PQS_datab[#All],B25))","v":""}]
[null,"",null,{"$f":"IF($E$5=\"\",\"\",PQS_datab[[#Headers],[Energy source (Category)2]])","v":""},{"$f":"IF($E$5=\"\",\"\",VLOOKUP($E$5,PQS_datab[#All],B26))","v":""},{"$f":"IF(OR(B26=\"\",$F$5=\"\"),\"\",VLOOKUP($F$5,PQS_datab[#All],B26))","v":""},{"$f":"IF(OR(B26=\"\",$G$5=\"\"),\"\",VLOOKUP($G$5,PQS_datab[#All],B26))","v":""},{"$f":"IF(OR(B26=\"\",$H$5=\"\"),\"\",VLOOKUP($H$5,PQS_datab[#All],B26))","v":""},{"$f":"IF(OR(B26=\"\",$I$5=\"\"),\"\",VLOOKUP($I$5,PQS_datab[#All],B26))","v":""}]
[null,"",null,{"$f":"IF($E$5=\"\",\"\",PQS_datab[[#Headers],[Vaccine storage capacity:(Litres)]])","v":""},{"$f":"IF($E$5=\"\",\"\",VLOOKUP($E$5,PQS_datab[#All],B27))","v":""},{"$f":"IF(OR(B27=\"\",$F$5=\"\"),\"\",VLOOKUP($F$5,PQS_datab[#All],B27))","v":""},{"$f":"IF(OR(B27=\"\",$G$5=\"\"),\"\",VLOOKUP($G$5,PQS_datab[#All],B27))","v":""},{"$f":"IF(OR(B27=\"\",$H$5=\"\"),\"\",VLOOKUP($H$5,PQS_datab[#All],B27))","v":""},{"$f":"IF(OR(B27=\"\",$I$5=\"\"),\"\",VLOOKUP($I$5,PQS_datab[#All],B27))","v":""}]
[null,"",null,{"$f":"IF($E$5=\"\",\"\",PQS_datab[[#Headers],[Gross volume (Litres):]])","v":""},{"$f":"IF($E$5=\"\",\"\",VLOOKUP($E$5,PQS_datab[#All],B28))","v":""},{"$f":"IF(OR(B28=\"\",$F$5=\"\"),\"\",VLOOKUP($F$5,PQS_datab[#All],B28))","v":""},{"$f":"IF(OR(B28=\"\",$G$5=\"\"),\"\",VLOOKUP($G$5,PQS_datab[#All],B28))","v":""},{"$f":"IF(OR(B28=\"\",$H$5=\"\"),\"\",VLOOKUP($H$5,PQS_datab[#All],B28))","v":""},{"$f":"IF(OR(B28=\"\",$I$5=\"\"),\"\",VLOOKUP($I$5,PQS_datab[#All],B28))","v":""}]
[null,"",null,{"$f":"IF($E$5=\"\",\"\",PQS_datab[[#Headers],[Holdover time (hours): ]])","v":""},{"$f":"IF($E$5=\"\",\"\",VLOOKUP($E$5,PQS_datab[#All],B29))","v":""},{"$f":"IF(OR(B29=\"\",$F$5=\"\"),\"\",VLOOKUP($F$5,PQS_datab[#All],B29))","v":""},{"$f":"IF(OR(B29=\"\",$G$5=\"\"),\"\",VLOOKUP($G$5,PQS_datab[#All],B29))","v":""},{"$f":"IF(OR(B29=\"\",$H$5=\"\"),\"\",VLOOKUP($H$5,PQS_datab[#All],B29))","v":""},{"$f":"IF(OR(B29=\"\",$I$5=\"\"),\"\",VLOOKUP($I$5,PQS_datab[#All],B29))","v":""}]
[null,"",null,{"$f":"IF($E$5=\"\",\"\",PQS_datab[[#Headers],[Energy consumption, stable running (kWh/24 hours):]])","v":""},{"$f":"IF($E$5=\"\",\"\",VLOOKUP($E$5,PQS_datab[#All],B30))","v":""},{"$f":"IF(OR(B30=\"\",$F$5=\"\"),\"\",VLOOKUP($F$5,PQS_datab[#All],B30))","v":""},{"$f":"IF(OR(B30=\"\",$G$5=\"\"),\"\",VLOOKUP($G$5,PQS_datab[#All],B30))","v":""},{"$f":"IF(OR(B30=\"\",$H$5=\"\"),\"\",VLOOKUP($H$5,PQS_datab[#All],B30))","v":""},{"$f":"IF(OR(B30=\"\",$I$5=\"\"),\"\",VLOOKUP($I$5,PQS_datab[#All],B30))","v":""}]
[null,"",null,{"$f":"IF($E$5=\"\",\"\",PQS_datab[[#Headers],[Energy consumption, cool down test (kWh/24 hours):]])","v":""},{"$f":"IF($E$5=\"\",\"\",VLOOKUP($E$5,PQS_datab[#All],B31))","v":""},{"$f":"IF(OR(B31=\"\",$F$5=\"\"),\"\",VLOOKUP($F$5,PQS_datab[#All],B31))","v":""},{"$f":"IF(OR(B31=\"\",$G$5=\"\"),\"\",VLOOKUP($G$5,PQS_datab[#All],B31))","v":""},{"$f":"IF(OR(B31=\"\",$H$5=\"\"),\"\",VLOOKUP($H$5,PQS_datab[#All],B31))","v":""},{"$f":"IF(OR(B31=\"\",$I$5=\"\"),\"\",VLOOKUP($I$5,PQS_datab[#All],B31))","v":""}]
[null,"",null,{"$f":"IF($E$5=\"\",\"\",PQS_datab[[#Headers],[Aoutonomy]])","v":""},{"$f":"IF($E$5=\"\",\"\",VLOOKUP($E$5,PQS_datab[#All],B32))","v":""},{"$f":"IF(OR(B32=\"\",$F$5=\"\"),\"\",VLOOKUP($F$5,PQS_datab[#All],B32))","v":""},{"$f":"IF(OR(B32=\"\",$G$5=\"\"),\"\",VLOOKUP($G$5,PQS_datab[#All],B32))","v":""},{"$f":"IF(OR(B32=\"\",$H$5=\"\"),\"\",VLOOKUP($H$5,PQS_datab[#All],B32))","v":""},{"$f":"IF(OR(B32=\"\",$I$5=\"\"),\"\",VLOOKUP($I$5,PQS_datab[#All],B32))","v":""}]
[null,"",null,{"$f":"IF($E$5=\"\",\"\",PQS_datab[[#Headers],[Solar radiation reference kWh/m2/day]])","v":""},{"$f":"IF($E$5=\"\",\"\",VLOOKUP($E$5,PQS_datab[#All],B33))","v":""},{"$f":"IF(OR(B33=\"\",$F$5=\"\"),\"\",VLOOKUP($F$5,PQS_datab[#All],B33))","v":""},{"$f":"IF(OR(B33=\"\",$G$5=\"\"),\"\",VLOOKUP($G$5,PQS_datab[#All],B33))","v":""},{"$f":"IF(OR(B33=\"\",$H$5=\"\"),\"\",VLOOKUP($H$5,PQS_datab[#All],B33))","v":""},{"$f":"IF(OR(B33=\"\",$I$5=\"\"),\"\",VLOOKUP($I$5,PQS_datab[#All],B33))","v":""}]
[null,"",null,{"$f":"IF($E$5=\"\",\"\",PQS_datab[[#Headers],[ Gross volume: freezing ]])","v":""},{"$f":"IF($E$5=\"\",\"\",VLOOKUP($E$5,PQS_datab[#All],B34))","v":""},{"$f":"IF(OR(B34=\"\",$F$5=\"\"),\"\",VLOOKUP($F$5,PQS_datab[#All],B34))","v":""},{"$f":"IF(OR(B34=\"\",$G$5=\"\"),\"\",VLOOKUP($G$5,PQS_datab[#All],B34))","v":""},{"$f":"IF(OR(B34=\"\",$H$5=\"\"),\"\",VLOOKUP($H$5,PQS_datab[#All],B34))","v":""},{"$f":"IF(OR(B34=\"\",$I$5=\"\"),\"\",VLOOKUP($I$5,PQS_datab[#All],B34))","v":""}]
[null,"",null,{"$f":"IF($E$5=\"\",\"\",PQS_datab[[#Headers],[Waterpack freezing capacity: Kg/24 hr]])","v":""},{"$f":"IF($E$5=\"\",\"\",VLOOKUP($E$5,PQS_datab[#All],B35))","v":""},{"$f":"IF(OR(B35=\"\",$F$5=\"\"),\"\",VLOOKUP($F$5,PQS_datab[#All],B35))","v":""},{"$f":"IF(OR(B35=\"\",$G$5=\"\"),\"\",VLOOKUP($G$5,PQS_datab[#All],B35))","v":""},{"$f":"IF(OR(B35=\"\",$H$5=\"\"),\"\",VLOOKUP($H$5,PQS_datab[#All],B35))","v":""},{"$f":"IF(OR(B35=\"\",$I$5=\"\"),\"\",VLOOKUP($I$5,PQS_datab[#All],B35))","v":""}]
[null,"",null,{"$f":"IF($E$5=\"\",\"\",PQS_datab[[#Headers],[Waterpack storage capacity:]])","v":""},{"$f":"IF($E$5=\"\",\"\",VLOOKUP($E$5,PQS_datab[#All],B36))","v":""},{"$f":"IF(OR(B36=\"\",$F$5=\"\"),\"\",VLOOKUP($F$5,PQS_datab[#All],B36))","v":""},{"$f":"IF(OR(B36=\"\",$G$5=\"\"),\"\",VLOOKUP($G$5,PQS_datab[#All],B36))","v":""},{"$f":"IF(OR(B36=\"\",$H$5=\"\"),\"\",VLOOKUP($H$5,PQS_datab[#All],B36))","v":""},{"$f":"IF(OR(B36=\"\",$I$5=\"\"),\"\",VLOOKUP($I$5,PQS_datab[#All],B36))","v":""}]
[null,"",null,{"$f":"IF($E$5=\"\",\"\",PQS_datab[[#Headers],[Energy consumption during freezing: kWh/24h]])","v":""},{"$f":"IF($E$5=\"\",\"\",VLOOKUP($E$5,PQS_datab[#All],B37))","v":""},{"$f":"IF(OR(B37=\"\",$F$5=\"\"),\"\",VLOOKUP($F$5,PQS_datab[#All],B37))","v":""},{"$f":"IF(OR(B37=\"\",$G$5=\"\"),\"\",VLOOKUP($G$5,PQS_datab[#All],B37))","v":""},{"$f":"IF(OR(B37=\"\",$H$5=\"\"),\"\",VLOOKUP($H$5,PQS_datab[#All],B37))","v":""},{"$f":"IF(OR(B37=\"\",$I$5=\"\"),\"\",VLOOKUP($I$5,PQS_datab[#All],B37))","v":""}]
[null,"",{"$f":"IF(E5=\"\",\"\",\"ACCESSORY AND SPARE\")","v":""},{"$f":"IF($E$5=\"\",\"\",PQS_datab[[#Headers],[Accessories: ]])","v":""},{"$f":"IF($E$5=\"\",\"\",VLOOKUP($E$5,PQS_datab[#All],B38))","v":""},{"$f":"IF(OR(B38=\"\",$F$5=\"\"),\"\",VLOOKUP($F$5,PQS_datab[#All],B38))","v":""},{"$f":"IF(OR(B38=\"\",$G$5=\"\"),\"\",VLOOKUP($G$5,PQS_datab[#All],B38))","v":""},{"$f":"IF(OR(B38=\"\",$H$5=\"\"),\"\",VLOOKUP($H$5,PQS_datab[#All],B38))","v":""},{"$f":"IF(OR(B38=\"\",$I$5=\"\"),\"\",VLOOKUP($I$5,PQS_datab[#All],B38))","v":""}]
[null,"",null,{"$f":"IF($E$5=\"\",\"\",PQS_datab[[#Headers],[Compressor make \n( Supplier) ]])","v":""},{"$f":"IF($E$5=\"\",\"\",VLOOKUP($E$5,PQS_datab[#All],B39))","v":""},{"$f":"IF(OR(B39=\"\",$F$5=\"\"),\"\",VLOOKUP($F$5,PQS_datab[#All],B39))","v":""},{"$f":"IF(OR(B39=\"\",$G$5=\"\"),\"\",VLOOKUP($G$5,PQS_datab[#All],B39))","v":""},{"$f":"IF(OR(B39=\"\",$H$5=\"\"),\"\",VLOOKUP($H$5,PQS_datab[#All],B39))","v":""},{"$f":"IF(OR(B39=\"\",$I$5=\"\"),\"\",VLOOKUP($I$5,PQS_datab[#All],B39))","v":""}]
[null,"",null,{"$f":"IF($E$5=\"\",\"\",PQS_datab[[#Headers],[Compressor Model ]])","v":""},{"$f":"IF($E$5=\"\",\"\",VLOOKUP($E$5,PQS_datab[#All],B40))","v":""},{"$f":"IF(OR(B40=\"\",$F$5=\"\"),\"\",VLOOKUP($F$5,PQS_datab[#All],B40))","v":""},{"$f":"IF(OR(B40=\"\",$G$5=\"\"),\"\",VLOOKUP($G$5,PQS_datab[#All],B40))","v":""},{"$f":"IF(OR(B40=\"\",$H$5=\"\"),\"\",VLOOKUP($H$5,PQS_datab[#All],B40))","v":""},{"$f":"IF(OR(B40=\"\",$I$5=\"\"),\"\",VLOOKUP($I$5,PQS_datab[#All],B40))","v":""}]
[null,"",null,{"$f":"IF($E$5=\"\",\"\",PQS_datab[[#Headers],[Compressor Rated  power  consumption (Watt)]])","v":""},{"$f":"IF($E$5=\"\",\"\",VLOOKUP($E$5,PQS_datab[#All],B41))","v":""},{"$f":"IF(OR(B41=\"\",$F$5=\"\"),\"\",VLOOKUP($F$5,PQS_datab[#All],B41))","v":""},{"$f":"IF(OR(B41=\"\",$G$5=\"\"),\"\",VLOOKUP($G$5,PQS_datab[#All],B41))","v":""},{"$f":"IF(OR(B41=\"\",$H$5=\"\"),\"\",VLOOKUP($H$5,PQS_datab[#All],B41))","v":""},{"$f":"IF(OR(B41=\"\",$I$5=\"\"),\"\",VLOOKUP($I$5,PQS_datab[#All],B41))","v":""}]
[null,"",null,{"$f":"IF($E$5=\"\",\"\",PQS_datab[[#Headers],[Spare parts (PQS ref, price):]])","v":""},{"$f":"IF($E$5=\"\",\"\",VLOOKUP($E$5,PQS_datab[#All],B42))","v":""},{"$f":"IF(OR(B42=\"\",$F$5=\"\"),\"\",VLOOKUP($F$5,PQS_datab[#All],B42))","v":""},{"$f":"IF(OR(B42=\"\",$G$5=\"\"),\"\",VLOOKUP($G$5,PQS_datab[#All],B42))","v":""},{"$f":"IF(OR(B42=\"\",$H$5=\"\"),\"\",VLOOKUP($H$5,PQS_datab[#All],B42))","v":""},{"$f":"IF(OR(B42=\"\",$I$5=\"\"),\"\",VLOOKUP($I$5,PQS_datab[#All],B42))","v":""}]
[null,"",{"$f":"IF($E$5=\"\",\"\",\"SHIPPING INFORMATION\")","v":""},{"$f":"IF($E$5=\"\",\"\",PQS_datab[[#Headers],[Shipping volume:  m3 ]])","v":""},{"$f":"IF($E$5=\"\",\"\",VLOOKUP($E$5,PQS_datab[#All],B43))","v":""},{"$f":"IF(OR(B43=\"\",$F$5=\"\"),\"\",VLOOKUP($F$5,PQS_datab[#All],B43))","v":""},{"$f":"IF(OR(B43=\"\",$G$5=\"\"),\"\",VLOOKUP($G$5,PQS_datab[#All],B43))","v":""},{"$f":"IF(OR(B43=\"\",$H$5=\"\"),\"\",VLOOKUP($H$5,PQS_datab[#All],B43))","v":""},{"$f":"IF(OR(B43=\"\",$I$5=\"\"),\"\",VLOOKUP($I$5,PQS_datab[#All],B43))","v":""}]
[null,"",null,{"$f":"IF($E$5=\"\",\"\",PQS_datab[[#Headers],[Shipping weight KG)]])","v":""},{"$f":"IF($E$5=\"\",\"\",VLOOKUP($E$5,PQS_datab[#All],B44))","v":""},{"$f":"IF(OR(B44=\"\",$F$5=\"\"),\"\",VLOOKUP($F$5,PQS_datab[#All],B44))","v":""},{"$f":"IF(OR(B44=\"\",$G$5=\"\"),\"\",VLOOKUP($G$5,PQS_datab[#All],B44))","v":""},{"$f":"IF(OR(B44=\"\",$H$5=\"\"),\"\",VLOOKUP($H$5,PQS_datab[#All],B44))","v":""},{"$f":"IF(OR(B44=\"\",$I$5=\"\"),\"\",VLOOKUP($I$5,PQS_datab[#All],B44))","v":""}]
[null,"",null,{"$f":"IF($E$5=\"\",\"\",PQS_datab[[#Headers],[Incoterms]])","v":""},{"$f":"IF($E$5=\"\",\"\",VLOOKUP($E$5,PQS_datab[#All],B45))","v":""},{"$f":"IF(OR(B45=\"\",$F$5=\"\"),\"\",VLOOKUP($F$5,PQS_datab[#All],B45))","v":""},{"$f":"IF(OR(B45=\"\",$G$5=\"\"),\"\",VLOOKUP($G$5,PQS_datab[#All],B45))","v":""},{"$f":"IF(OR(B45=\"\",$H$5=\"\"),\"\",VLOOKUP($H$5,PQS_datab[#All],B45))","v":""},{"$f":"IF(OR(B45=\"\",$I$5=\"\"),\"\",VLOOKUP($I$5,PQS_datab[#All],B45))","v":""}]
[null,"",null,null,null,{"$f":"IF(OR(B46=\"\",$F$5=\"\"),\"\",VLOOKUP($F$5,PQS_datab[#All],B46))","v":""},{"$f":"IF(OR(B46=\"\",$G$5=\"\"),\"\",VLOOKUP($G$5,PQS_datab[#All],B46))","v":""},{"$f":"IF(OR(B46=\"\",$H$5=\"\"),\"\",VLOOKUP($H$5,PQS_datab[#All],B46))","v":""},{"$f":"IF(OR(B46=\"\",$I$5=\"\"),\"\",VLOOKUP($I$5,PQS_datab[#All],B46))","v":""}]
[null,"",null,null,null,{"$f":"IF(OR(B47=\"\",$F$5=\"\"),\"\",VLOOKUP($F$5,PQS_datab[#All],B47))","v":""},{"$f":"IF(OR(B47=\"\",$G$5=\"\"),\"\",VLOOKUP($G$5,PQS_datab[#All],B47))","v":""},{"$f":"IF(OR(B47=\"\",$H$5=\"\"),\"\",VLOOKUP($H$5,PQS_datab[#All],B47))","v":""},{"$f":"IF(OR(B47=\"\",$I$5=\"\"),\"\",VLOOKUP($I$5,PQS_datab[#All],B47))","v":""}]
[null,"",{"$f":"IF(E5=\"\",\"\",\"QUALTIY \")","v":""},{"$f":"IF($E$5=\"\",\"\",PQS_datab[[#Headers],[Quality standard: - ]])","v":""},{"$f":"IF($E$5=\"\",\"\",VLOOKUP($E$5,PQS_datab[#All],B48))","v":""},{"$f":"IF(OR(B48=\"\",$F$5=\"\"),\"\",VLOOKUP($F$5,PQS_datab[#All],B48))","v":""},{"$f":"IF(OR(B48=\"\",$G$5=\"\"),\"\",VLOOKUP($G$5,PQS_datab[#All],B48))","v":""},{"$f":"IF(OR(B48=\"\",$H$5=\"\"),\"\",VLOOKUP($H$5,PQS_datab[#All],B48))","v":""},{"$f":"IF(OR(B48=\"\",$I$5=\"\"),\"\",VLOOKUP($I$5,PQS_datab[#All],B48))","v":""}]
[null,"",null,{"$f":"IF($E$5=\"\",\"\",PQS_datab[[#Headers],[Verification report: ]])","v":""},{"$f":"IF($E$5=\"\",\"\",VLOOKUP($E$5,PQS_datab[#All],B49))","v":""},{"$f":"IF(OR(B49=\"\",$F$5=\"\"),\"\",VLOOKUP($F$5,PQS_datab[#All],B49))","v":""},{"$f":"IF(OR(B49=\"\",$G$5=\"\"),\"\",VLOOKUP($G$5,PQS_datab[#All],B49))","v":""},{"$f":"IF(OR(B49=\"\",$H$5=\"\"),\"\",VLOOKUP($H$5,PQS_datab[#All],B49))","v":""},{"$f":"IF(OR(B49=\"\",$I$5=\"\"),\"\",VLOOKUP($I$5,PQS_datab[#All],B49))","v":""}]
[null,"",null,{"$f":"IF($E$5=\"\",\"\",PQS_datab[[#Headers],[Current PQS status: pre-qualified:]])","v":""},{"$f":"IF($E$5=\"\",\"\",VLOOKUP($E$5,PQS_datab[#All],B50))","v":""},{"$f":"IF(OR(B50=\"\",$F$5=\"\"),\"\",VLOOKUP($F$5,PQS_datab[#All],B50))","v":""},{"$f":"IF(OR(B50=\"\",$G$5=\"\"),\"\",VLOOKUP($G$5,PQS_datab[#All],B50))","v":""},{"$f":"IF(OR(B50=\"\",$H$5=\"\"),\"\",VLOOKUP($H$5,PQS_datab[#All],B50))","v":""},{"$f":"IF(OR(B50=\"\",$I$5=\"\"),\"\",VLOOKUP($I$5,PQS_datab[#All],B50))","v":""}]
[null,"",null,{"$f":"IF($E$5=\"\",\"\",PQS_datab[[#Headers],[Verification laboratory: ]])","v":""},{"$f":"IF($E$5=\"\",\"\",VLOOKUP($E$5,PQS_datab[#All],B51))","v":""},{"$f":"IF(OR(B51=\"\",$F$5=\"\"),\"\",VLOOKUP($F$5,PQS_datab[#All],B51))","v":""},{"$f":"IF(OR(B51=\"\",$G$5=\"\"),\"\",VLOOKUP($G$5,PQS_datab[#All],B51))","v":""},{"$f":"IF(OR(B51=\"\",$H$5=\"\"),\"\",VLOOKUP($H$5,PQS_datab[#All],B51))","v":""},{"$f":"IF(OR(B51=\"\",$I$5=\"\"),\"\",VLOOKUP($I$5,PQS_datab[#All],B51))","v":""}]
[null,"",null,{"$f":"IF($E$5=\"\",\"\",PQS_datab[[#Headers],[Validity until]])","v":""},{"$f":"IF($E$5=\"\",\"\",VLOOKUP($E$5,PQS_datab[#All],B52))","v":""},{"$f":"IF(OR(B52=\"\",$F$5=\"\"),\"\",VLOOKUP($F$5,PQS_datab[#All],B52))","v":""},{"$f":"IF(OR(B52=\"\",$G$5=\"\"),\"\",VLOOKUP($G$5,PQS_datab[#All],B52))","v":""},{"$f":"IF(OR(B52=\"\",$H$5=\"\"),\"\",VLOOKUP($H$5,PQS_datab[#All],B52))","v":""},{"$f":"IF(OR(B52=\"\",$I$5=\"\"),\"\",VLOOKUP($I$5,PQS_datab[#All],B52))","v":""}]
[null,"",null,{"$f":"IF($E$5=\"\",\"\",PQS_datab[[#Headers],[Volume category (UNICEF)]])","v":""},{"$f":"IF($E$5=\"\",\"\",VLOOKUP($E$5,PQS_datab[#All],B53))","v":""},{"$f":"IF(OR(B53=\"\",$F$5=\"\"),\"\",VLOOKUP($F$5,PQS_datab[#All],B53))","v":""},{"$f":"IF(OR(B53=\"\",$G$5=\"\"),\"\",VLOOKUP($G$5,PQS_datab[#All],B53))","v":""},{"$f":"IF(OR(B53=\"\",$H$5=\"\"),\"\",VLOOKUP($H$5,PQS_datab[#All],B53))","v":""},{"$f":"IF(OR(B53=\"\",$I$5=\"\"),\"\",VLOOKUP($I$5,PQS_datab[#All],B53))","v":""}]
[null,"",null,{"$f":"IF($E$5=\"\",\"\",PQS_datab[[#Headers],[Volume category ( CCEOP)]])","v":""},{"$f":"IF($E$5=\"\",\"\",VLOOKUP($E$5,PQS_datab[#All],B54))","v":""},{"$f":"IF(OR(B54=\"\",$F$5=\"\"),\"\",VLOOKUP($F$5,PQS_datab[#All],B54))","v":""},{"$f":"IF(OR(B54=\"\",$G$5=\"\"),\"\",VLOOKUP($G$5,PQS_datab[#All],B54))","v":""},{"$f":"IF(OR(B54=\"\",$H$5=\"\"),\"\",VLOOKUP($H$5,PQS_datab[#All],B54))","v":""},{"$f":"IF(OR(B54=\"\",$I$5=\"\"),\"\",VLOOKUP($I$5,PQS_datab[#All],B54))","v":""}]
[null,"",null,{"$f":"IF($E$5=\"\",\"\",PQS_datab[[#Headers],[Comments]])","v":""},{"$f":"IF($E$5=\"\",\"\",VLOOKUP($E$5,PQS_datab[#All],B55))","v":""},{"$f":"IF(OR(B55=\"\",$F$5=\"\"),\"\",VLOOKUP($F$5,PQS_datab[#All],B55))","v":""},{"$f":"IF(OR(B55=\"\",$G$5=\"\"),\"\",VLOOKUP($G$5,PQS_datab[#All],B55))","v":""},{"$f":"IF(OR(B55=\"\",$H$5=\"\"),\"\",VLOOKUP($H$5,PQS_datab[#All],B55))","v":""},{"$f":"IF(OR(B55=\"\",$I$5=\"\"),\"\",VLOOKUP($I$5,PQS_datab[#All],B55))","v":""}]